﻿Department Family,Entity,Date,Expense Type,Expense Area,Supplier,Transaction Number,AP Amount,Supplier Postcode
Department of Health,NHS Sheffield CCG,30/09/2021,Clinical&Medical-Independent Sector,ACUTE COMMISSIONING,SPAMEDICA LTD,37948645,114836.12,BL1 1HU
Department of Health,NHS Sheffield CCG,30/09/2021,Clinical&Medical-Independent Sector,ACUTE COMMISSIONING,ONEHEALTH GROUP,37948647,61673.25,S11 8UX
Department of Health,NHS Sheffield CCG,30/09/2021,Clinical&Medical-Independent Sector,ACUTE COMMISSIONING,SPAMEDICA LTD,37948718,121092.27,BL1 1HU
Department of Health,NHS Sheffield CCG,30/09/2021,Clinical&Medical-Independent Sector,ACUTE COMMISSIONING,BMI HEALTHCARE LTD,37948719,47095.63,SK3 0XN
Department of Health,NHS Sheffield CCG,30/09/2021,C&M-GMS Global Sum,PRC DELEGATED CO-COMMISSIONING,BEAUCHIEF MEDICAL PRACTICE,37954640,46155.03,S8 0BJ
Department of Health,NHS Sheffield CCG,30/09/2021,C&M-GMS Prem Notional Rent,PRC DELEGATED CO-COMMISSIONING,BEAUCHIEF MEDICAL PRACTICE,37954640,3770.84,S8 0BJ
Department of Health,NHS Sheffield CCG,30/09/2021,C&M-GMS C&M-APMS PCN DES Physician Assoc,PRC DELEGATED CO-COMMISSIONING,PRIMARY CARE SHEFFIELD LTD,37959949,8539.18,S9 4EU
Department of Health,NHS Sheffield CCG,30/09/2021,C&M-GMS PCN DES Clin Pharmacist,PRC DELEGATED CO-COMMISSIONING,PRIMARY CARE SHEFFIELD LTD,37959949,9471.5,S9 4EU
Department of Health,NHS Sheffield CCG,30/09/2021,C&M-GMS PCN DES Physiotherapist,PRC DELEGATED CO-COMMISSIONING,PRIMARY CARE SHEFFIELD LTD,37959949,5176.17,S9 4EU
Department of Health,NHS Sheffield CCG,30/09/2021,C&M-GMS PCN DES Soc Prescribing,PRC DELEGATED CO-COMMISSIONING,PRIMARY CARE SHEFFIELD LTD,37959949,2333.33,S9 4EU
Department of Health,NHS Sheffield CCG,30/09/2021,C&M-PCN DES PHARMACY TECHNICIANS,PRC DELEGATED CO-COMMISSIONING,PRIMARY CARE SHEFFIELD LTD,37959949,5220.6,S9 4EU
Department of Health,NHS Sheffield CCG,30/09/2021,C&M-PCN DES Trainee Nursing Associate,PRC DELEGATED CO-COMMISSIONING,PRIMARY CARE SHEFFIELD LTD,37959949,1890.5,S9 4EU
Department of Health,NHS Sheffield CCG,30/09/2021,C&M-GMS C&M-APMS PCN DES Physician Assoc,PRC DELEGATED CO-COMMISSIONING,PRIMARY CARE SHEFFIELD LTD,37959978,6458.14,S9 4EU
Department of Health,NHS Sheffield CCG,30/09/2021,C&M-GMS PCN DES Clin Pharmacist,PRC DELEGATED CO-COMMISSIONING,PRIMARY CARE SHEFFIELD LTD,37959978,13987.09,S9 4EU
Department of Health,NHS Sheffield CCG,30/09/2021,C&M-GMS PCN DES Physiotherapist,PRC DELEGATED CO-COMMISSIONING,PRIMARY CARE SHEFFIELD LTD,37959978,9471.5,S9 4EU
Department of Health,NHS Sheffield CCG,30/09/2021,C&M-GMS PCN DES Soc Prescribing,PRC DELEGATED CO-COMMISSIONING,PRIMARY CARE SHEFFIELD LTD,37959978,5715,S9 4EU
Department of Health,NHS Sheffield CCG,30/09/2021,C&M-PCN DES DIETICIANS,PRC DELEGATED CO-COMMISSIONING,PRIMARY CARE SHEFFIELD LTD,37959978,4160.08,S9 4EU
Department of Health,NHS Sheffield CCG,30/09/2021,C&M-PCN DES HEALTH AND WELLBEING COACH,PRC DELEGATED CO-COMMISSIONING,PRIMARY CARE SHEFFIELD LTD,37959978,1604.06,S9 4EU
Department of Health,NHS Sheffield CCG,30/09/2021,C&M-PCN DES PHARMACY TECHNICIANS,PRC DELEGATED CO-COMMISSIONING,PRIMARY CARE SHEFFIELD LTD,37959978,3009.5,S9 4EU
Department of Health,NHS Sheffield CCG,30/09/2021,C&M-GMS C&M-APMS PCN DES Physician Assoc,PRC DELEGATED CO-COMMISSIONING,PRIMARY CARE SHEFFIELD LTD,37959985,7161.53,S9 4EU
Department of Health,NHS Sheffield CCG,30/09/2021,C&M-GMS PCN DES Clin Pharmacist,PRC DELEGATED CO-COMMISSIONING,PRIMARY CARE SHEFFIELD LTD,37959985,14096.98,S9 4EU
Department of Health,NHS Sheffield CCG,30/09/2021,C&M-GMS PCN DES Physiotherapist,PRC DELEGATED CO-COMMISSIONING,PRIMARY CARE SHEFFIELD LTD,37959985,6312.75,S9 4EU
Department of Health,NHS Sheffield CCG,30/09/2021,C&M-GMS PCN DES Soc Prescribing,PRC DELEGATED CO-COMMISSIONING,PRIMARY CARE SHEFFIELD LTD,37959985,5715,S9 4EU
Department of Health,NHS Sheffield CCG,30/09/2021,C&M-PCN DES DIETICIANS,PRC DELEGATED CO-COMMISSIONING,PRIMARY CARE SHEFFIELD LTD,37959985,4160.08,S9 4EU
Department of Health,NHS Sheffield CCG,30/09/2021,C&M-PCN DES HEALTH AND WELLBEING COACH,PRC DELEGATED CO-COMMISSIONING,PRIMARY CARE SHEFFIELD LTD,37959985,1604.06,S9 4EU
Department of Health,NHS Sheffield CCG,30/09/2021,C&M-PCN DES PHARMACY TECHNICIANS,PRC DELEGATED CO-COMMISSIONING,PRIMARY CARE SHEFFIELD LTD,37959985,3009.5,S9 4EU
Department of Health,NHS Sheffield CCG,30/09/2021,C&M-GMS PCN DES Clin Pharmacist,PRC DELEGATED CO-COMMISSIONING,PRIMARY CARE SHEFFIELD LTD,37959992,15890.44,S9 4EU
Department of Health,NHS Sheffield CCG,30/09/2021,C&M-GMS PCN DES Home/RR paramedic,PRC DELEGATED CO-COMMISSIONING,PRIMARY CARE SHEFFIELD LTD,37959992,4429.4,S9 4EU
Department of Health,NHS Sheffield CCG,30/09/2021,C&M-GMS PCN DES Physiotherapist,PRC DELEGATED CO-COMMISSIONING,PRIMARY CARE SHEFFIELD LTD,37959992,4667.5,S9 4EU
Department of Health,NHS Sheffield CCG,30/09/2021,C&M-GMS PCN DES Soc Prescribing,PRC DELEGATED CO-COMMISSIONING,PRIMARY CARE SHEFFIELD LTD,37959992,5844,S9 4EU
Department of Health,NHS Sheffield CCG,30/09/2021,C&M- PCN DES CARE COORDINATOR,PRC DELEGATED CO-COMMISSIONING,PRIMARY CARE SHEFFIELD LTD,37960004,1686.21,S9 4EU
Department of Health,NHS Sheffield CCG,30/09/2021,C&M-GMS C&M-APMS PCN DES Physician Assoc,PRC DELEGATED CO-COMMISSIONING,PRIMARY CARE SHEFFIELD LTD,37960004,8836.43,S9 4EU
Department of Health,NHS Sheffield CCG,30/09/2021,C&M-GMS PCN DES Clin Pharmacist,PRC DELEGATED CO-COMMISSIONING,PRIMARY CARE SHEFFIELD LTD,37960004,9901.48,S9 4EU
Department of Health,NHS Sheffield CCG,30/09/2021,C&M-GMS PCN DES Physiotherapist,PRC DELEGATED CO-COMMISSIONING,PRIMARY CARE SHEFFIELD LTD,37960004,3145.59,S9 4EU
Department of Health,NHS Sheffield CCG,30/09/2021,C&M-GMS PCN DES Soc Prescribing,PRC DELEGATED CO-COMMISSIONING,PRIMARY CARE SHEFFIELD LTD,37960004,5258.69,S9 4EU
Department of Health,NHS Sheffield CCG,30/09/2021,C&M-PCN DES PHARMACY TECHNICIANS,PRC DELEGATED CO-COMMISSIONING,PRIMARY CARE SHEFFIELD LTD,37960004,2741.69,S9 4EU
Department of Health,NHS Sheffield CCG,30/09/2021,Other Gen Supplies & Srv,BEREAVEMENT SERVICE,SHEFFIELD TEACHING HOSPITALS NHS FOUNDATION TRUST,37996241,-43000,S5 7AU
Department of Health,NHS Sheffield CCG,30/09/2021,Other Gen Supplies & Srv,BEREAVEMENT SERVICE,SHEFFIELD TEACHING HOSPITALS NHS FOUNDATION TRUST,37996255,43000,S5 7AU
Department of Health,NHS Sheffield CCG,30/09/2021,C&M-GMS C&M-APMS PCN DES Physician Assoc,PRC DELEGATED CO-COMMISSIONING,PRIMARY CARE SHEFFIELD LTD,37996413,4355.7,S9 4EU
Department of Health,NHS Sheffield CCG,30/09/2021,C&M-GMS PCN DES Clin Pharmacist,PRC DELEGATED CO-COMMISSIONING,PRIMARY CARE SHEFFIELD LTD,37996413,9409.94,S9 4EU
Department of Health,NHS Sheffield CCG,30/09/2021,C&M-GMS PCN DES Home/RR paramedic,PRC DELEGATED CO-COMMISSIONING,PRIMARY CARE SHEFFIELD LTD,37996413,4558.85,S9 4EU
Department of Health,NHS Sheffield CCG,30/09/2021,C&M-GMS PCN DES Physiotherapist,PRC DELEGATED CO-COMMISSIONING,PRIMARY CARE SHEFFIELD LTD,37996413,4735.75,S9 4EU
Department of Health,NHS Sheffield CCG,30/09/2021,C&M-GMS PCN DES Soc Prescribing,PRC DELEGATED CO-COMMISSIONING,PRIMARY CARE SHEFFIELD LTD,37996413,4272.8,S9 4EU
Department of Health,NHS Sheffield CCG,30/09/2021,C&M-PCN DES OCCUPATIONAL THERAPISTS,PRC DELEGATED CO-COMMISSIONING,PRIMARY CARE SHEFFIELD LTD,37996413,4267.1,S9 4EU
Department of Health,NHS Sheffield CCG,30/09/2021,C&M-PCN DES PHARMACY TECHNICIANS,PRC DELEGATED CO-COMMISSIONING,PRIMARY CARE SHEFFIELD LTD,37996413,3980.31,S9 4EU
Department of Health,NHS Sheffield CCG,30/09/2021,C&M-GMS PCN DES Clin Pharmacist,PRC DELEGATED CO-COMMISSIONING,PRIMARY CARE SHEFFIELD LTD,37996429,17578.77,S9 4EU
Department of Health,NHS Sheffield CCG,30/09/2021,C&M-GMS PCN DES Soc Prescribing,PRC DELEGATED CO-COMMISSIONING,PRIMARY CARE SHEFFIELD LTD,37996429,8162.63,S9 4EU
Department of Health,NHS Sheffield CCG,30/09/2021,C&M-PCN DES PHARMACY TECHNICIANS,PRC DELEGATED CO-COMMISSIONING,PRIMARY CARE SHEFFIELD LTD,37996429,8331.92,S9 4EU
Department of Health,NHS Sheffield CCG,30/09/2021,Participation Fees,BEREAVEMENT SERVICE,DONCASTER AND BASSETLAW HOSPITALS NHS FOUNDATION TRUST,38006666,1186077,WF3 1WE
Department of Health,NHS Sheffield CCG,30/09/2021,Participation Fees,BEREAVEMENT SERVICE,SHEFFIELD CHILDRENS NHS FOUNDATION TRUST,38006669,1372012,S10 2TH
Department of Health,NHS Sheffield CCG,30/09/2021,Participation Fees,BEREAVEMENT SERVICE,ROTHERHAM NHS FOUNDATION TRUST,38006670,1343080,S60 2UD
Department of Health,NHS Sheffield CCG,30/09/2021,Participation Fees,BEREAVEMENT SERVICE,SHEFFIELD TEACHING HOSPITALS NHS FOUNDATION TRUST,38006674,4106448,S5 7AU
Department of Health,NHS Sheffield CCG,30/09/2021,Clinical&Medical-Commercial Sector,PATIENT TRANSPORT,PREMIER CARE DIRECT LTD,38006675,112480.55,DN4 5NU
Department of Health,NHS Sheffield CCG,30/09/2021,Participation Fees,BEREAVEMENT SERVICE,BARNSLEY HOSPITAL NHS FOUNDATION TRUST,38006678,906147,S75 2EP
Department of Health,NHS Sheffield CCG,30/09/2021,C&M-APMS DES Extended Hours Access,GP FORWARD VIEW,PRIMARY CARE SHEFFIELD LTD,38006686,309441.67,S12 3GH
Department of Health,NHS Sheffield CCG,30/09/2021,C&M-GMS LES Basket of Procedures,LOCAL ENHANCED SERVICES,PRIMARY CARE SHEFFIELD LTD,38006691,53558.33,S12 3GH
Department of Health,NHS Sheffield CCG,30/09/2021,C&M-GMS Other Addtl Staff Paymts,PRC DELEGATED CO-COMMISSIONING,PRIMARY CARE SHEFFIELD LTD,38006708,69300,S12 3GH
Department of Health,NHS Sheffield CCG,30/09/2021,Professional Fees,BEREAVEMENT SERVICE,SME HCI LTD,38006713,26400,GU9 7UD
Department of Health,NHS Sheffield CCG,30/09/2021,Course Fees,BEREAVEMENT SERVICE,SME HCI LTD,38006722,389016,GU9 7UD
Department of Health,NHS Sheffield CCG,30/09/2021,Voids and Subsidies,PRC DELEGATED CO-COMMISSIONING,COMMUNITY HEALTH PARTNERSHIPS LTD,38006735,39478.29,M1 3LD
Department of Health,NHS Sheffield CCG,30/09/2021,Voids and Subsidies,RECHARGES NHS PROPERTY SERVICES LTD,COMMUNITY HEALTH PARTNERSHIPS LTD,38006735,112844.21,M1 3LD
Department of Health,NHS Sheffield CCG,30/09/2021,Participation Fees,BEREAVEMENT SERVICE,LIGHT PEER SUPPORT LTD,38006742,28460.84,S2 3QE
Department of Health,NHS Sheffield CCG,30/09/2021,Cont Care-Physical Disab (65+),CHC ADULT FULLY FUNDED,ABBEYCARE NURSING,38006744,57327.6,S35 9YY
Department of Health,NHS Sheffield CCG,30/09/2021,Clinical&Medical-Voluntary Sector,CHILD AND ADOLESCENT MENTAL HEALTH,SHEFFIELD FUTURES,38028006,25600.01,S1 4GE
Department of Health,NHS Sheffield CCG,30/09/2021,C&M-APMS Contract Value,PRC DELEGATED CO-COMMISSIONING,CLOVER CITY PRACTICE,38043847,34478.44,S9 4QH
Department of Health,NHS Sheffield CCG,30/09/2021,C&M-APMS PCN DES Participation,PRC DELEGATED CO-COMMISSIONING,CLOVER CITY PRACTICE,38043847,592.77,S9 4QH
Department of Health,NHS Sheffield CCG,30/09/2021,C&M-APMS QOF Aspiration,PRC DELEGATED CO-COMMISSIONING,CLOVER CITY PRACTICE,38043847,2087.76,S9 4QH
Department of Health,NHS Sheffield CCG,30/09/2021,C&M-PMS Contract Value,PRC DELEGATED CO-COMMISSIONING,WINCOBANK MEDICAL CENTRE,38043849,66514.22,S9 1DJ
Department of Health,NHS Sheffield CCG,30/09/2021,C&M-PMS Out of Hours Opt Outs,PRC DELEGATED CO-COMMISSIONING,WINCOBANK MEDICAL CENTRE,38043849,19.77,S9 1DJ
Department of Health,NHS Sheffield CCG,30/09/2021,C&M-PMS PCN DES Participation,PRC DELEGATED CO-COMMISSIONING,WINCOBANK MEDICAL CENTRE,38043849,1191.11,S9 1DJ
Department of Health,NHS Sheffield CCG,30/09/2021,C&M-PMS Prem Healthcentre Rent,PRC DELEGATED CO-COMMISSIONING,WINCOBANK MEDICAL CENTRE,38043849,47262.38,S9 1DJ
Department of Health,NHS Sheffield CCG,30/09/2021,C&M-PMS QOF Aspiration,PRC DELEGATED CO-COMMISSIONING,WINCOBANK MEDICAL CENTRE,38043849,7252.53,S9 1DJ
Department of Health,NHS Sheffield CCG,30/09/2021,C&M-PMS Contract Value,PRC DELEGATED CO-COMMISSIONING,FOXHILL MEDICAL CENTRE SHEFFIELD,38043851,53451.66,S6 1GA
Department of Health,NHS Sheffield CCG,30/09/2021,C&M-PMS DES Learn Dsblty Hlth Chk,PRC DELEGATED CO-COMMISSIONING,FOXHILL MEDICAL CENTRE SHEFFIELD,38043851,280,S6 1GA
Department of Health,NHS Sheffield CCG,30/09/2021,C&M-PMS Funding Differential Review,PRC DELEGATED CO-COMMISSIONING,FOXHILL MEDICAL CENTRE SHEFFIELD,38043851,1157.94,S6 1GA
Department of Health,NHS Sheffield CCG,30/09/2021,C&M-PMS Out of Hours Opt Outs,PRC DELEGATED CO-COMMISSIONING,FOXHILL MEDICAL CENTRE SHEFFIELD,38043851,75.77,S6 1GA
Department of Health,NHS Sheffield CCG,30/09/2021,C&M-PMS PCN DES Participation,PRC DELEGATED CO-COMMISSIONING,FOXHILL MEDICAL CENTRE SHEFFIELD,38043851,965.57,S6 1GA
Department of Health,NHS Sheffield CCG,30/09/2021,C&M-PMS PCO Other,PRC DELEGATED CO-COMMISSIONING,FOXHILL MEDICAL CENTRE SHEFFIELD,38043851,392.5,S6 1GA
Department of Health,NHS Sheffield CCG,30/09/2021,C&M-PMS Prem Healthcentre Rent,PRC DELEGATED CO-COMMISSIONING,FOXHILL MEDICAL CENTRE SHEFFIELD,38043851,76609.26,S6 1GA
Department of Health,NHS Sheffield CCG,30/09/2021,C&M-PMS QOF Aspiration,PRC DELEGATED CO-COMMISSIONING,FOXHILL MEDICAL CENTRE SHEFFIELD,38043851,6019.72,S6 1GA
Department of Health,NHS Sheffield CCG,30/09/2021,C&M-PMS Contract Value,PRC DELEGATED CO-COMMISSIONING,WOODHOUSE HEALTH CENTRE,38043853,103951.25,S13 7LY
Department of Health,NHS Sheffield CCG,30/09/2021,C&M-PMS Funding Differential Review,PRC DELEGATED CO-COMMISSIONING,WOODHOUSE HEALTH CENTRE,38043853,2095.91,S13 7LY
Department of Health,NHS Sheffield CCG,30/09/2021,C&M-PMS Out of Hours Opt Outs,PRC DELEGATED CO-COMMISSIONING,WOODHOUSE HEALTH CENTRE,38043853,106.03,S13 7LY
Department of Health,NHS Sheffield CCG,30/09/2021,C&M-PMS PCN DES Participation,PRC DELEGATED CO-COMMISSIONING,WOODHOUSE HEALTH CENTRE,38043853,1880.78,S13 7LY
Department of Health,NHS Sheffield CCG,30/09/2021,C&M-PMS PCO Other,PRC DELEGATED CO-COMMISSIONING,WOODHOUSE HEALTH CENTRE,38043853,743.9,S13 7LY
Department of Health,NHS Sheffield CCG,30/09/2021,C&M-PMS Prem Notional Rent,PRC DELEGATED CO-COMMISSIONING,WOODHOUSE HEALTH CENTRE,38043853,6338.58,S13 7LY
Department of Health,NHS Sheffield CCG,30/09/2021,C&M-PMS Prem Rates,PRC DELEGATED CO-COMMISSIONING,WOODHOUSE HEALTH CENTRE,38043853,1459,S13 7LY
Department of Health,NHS Sheffield CCG,30/09/2021,C&M-PMS QOF Aspiration,PRC DELEGATED CO-COMMISSIONING,WOODHOUSE HEALTH CENTRE,38043853,16364.27,S13 7LY
Department of Health,NHS Sheffield CCG,30/09/2021,C&M-PMS Contract Value,PRC DELEGATED CO-COMMISSIONING,GLEADLESS MEDICAL CENTRE,38043855,71125.01,S14 1PQ
Department of Health,NHS Sheffield CCG,30/09/2021,C&M-PMS Funding Differential Review,PRC DELEGATED CO-COMMISSIONING,GLEADLESS MEDICAL CENTRE,38043855,1547.97,S14 1PQ
Department of Health,NHS Sheffield CCG,30/09/2021,C&M-PMS Out of Hours Opt Outs,PRC DELEGATED CO-COMMISSIONING,GLEADLESS MEDICAL CENTRE,38043855,77.46,S14 1PQ
Department of Health,NHS Sheffield CCG,30/09/2021,C&M-PMS PCN DES Participation,PRC DELEGATED CO-COMMISSIONING,GLEADLESS MEDICAL CENTRE,38043855,1285.55,S14 1PQ
Department of Health,NHS Sheffield CCG,30/09/2021,C&M-PMS PCO Other,PRC DELEGATED CO-COMMISSIONING,GLEADLESS MEDICAL CENTRE,38043855,556.4,S14 1PQ
Department of Health,NHS Sheffield CCG,30/09/2021,C&M-PMS Prem Notional Rent,PRC DELEGATED CO-COMMISSIONING,GLEADLESS MEDICAL CENTRE,38043855,6885.42,S14 1PQ
Department of Health,NHS Sheffield CCG,30/09/2021,C&M-PMS Prem Rates,PRC DELEGATED CO-COMMISSIONING,GLEADLESS MEDICAL CENTRE,38043855,1210,S14 1PQ
Department of Health,NHS Sheffield CCG,30/09/2021,C&M-PMS QOF Aspiration,PRC DELEGATED CO-COMMISSIONING,GLEADLESS MEDICAL CENTRE,38043855,8240.34,S14 1PQ
Department of Health,NHS Sheffield CCG,30/09/2021,C&M-PMS Contract Value,PRC DELEGATED CO-COMMISSIONING,GLEADLESS MEDICAL CENTRE,38043856,-1712.54,S14 1PQ
Department of Health,NHS Sheffield CCG,30/09/2021,C&M-PMS GP Statutory Levy,PRC DELEGATED CO-COMMISSIONING,GLEADLESS MEDICAL CENTRE,38043856,-307.06,S14 1PQ
Department of Health,NHS Sheffield CCG,30/09/2021,C&M-PMS Out of Hours Opt Outs,PRC DELEGATED CO-COMMISSIONING,GLEADLESS MEDICAL CENTRE,38043856,-3344.99,S14 1PQ
Department of Health,NHS Sheffield CCG,30/09/2021,C&M- PCN DES CARE COORDINATOR,PRC DELEGATED CO-COMMISSIONING,JAUNTY SPRINGS HEALTH CENTRE,38043857,1431.6,S12 3DZ
Department of Health,NHS Sheffield CCG,30/09/2021,C&M- PCN DES Nursing Associate,PRC DELEGATED CO-COMMISSIONING,JAUNTY SPRINGS HEALTH CENTRE,38043857,2435.76,S12 3DZ
Department of Health,NHS Sheffield CCG,30/09/2021,C&M-PCN DES OCCUPATIONAL THERAPISTS,PRC DELEGATED CO-COMMISSIONING,JAUNTY SPRINGS HEALTH CENTRE,38043857,2521.63,S12 3DZ
Department of Health,NHS Sheffield CCG,30/09/2021,C&M-PCN DES PHARMACY TECHNICIANS,PRC DELEGATED CO-COMMISSIONING,JAUNTY SPRINGS HEALTH CENTRE,38043857,3009.5,S12 3DZ
Department of Health,NHS Sheffield CCG,30/09/2021,C&M-PMS Contract Value,PRC DELEGATED CO-COMMISSIONING,JAUNTY SPRINGS HEALTH CENTRE,38043857,33155.28,S12 3DZ
Department of Health,NHS Sheffield CCG,30/09/2021,C&M-PMS DES Extended Hours Access,PRC DELEGATED CO-COMMISSIONING,JAUNTY SPRINGS HEALTH CENTRE,38043857,4196.88,S12 3DZ
Department of Health,NHS Sheffield CCG,30/09/2021,C&M-PMS DES Learn Dsblty Hlth Chk,PRC DELEGATED CO-COMMISSIONING,JAUNTY SPRINGS HEALTH CENTRE,38043857,420,S12 3DZ
Department of Health,NHS Sheffield CCG,30/09/2021,C&M-PMS Out of Hours Opt Outs,PRC DELEGATED CO-COMMISSIONING,JAUNTY SPRINGS HEALTH CENTRE,38043857,6.94,S12 3DZ
Department of Health,NHS Sheffield CCG,30/09/2021,C&M-PMS PCN DES Clin Pharmacist,PRC DELEGATED CO-COMMISSIONING,JAUNTY SPRINGS HEALTH CENTRE,38043857,4639.17,S12 3DZ
Department of Health,NHS Sheffield CCG,30/09/2021,C&M-PMS PCN DES Clinical Director,PRC DELEGATED CO-COMMISSIONING,JAUNTY SPRINGS HEALTH CENTRE,38043857,4278.48,S12 3DZ
Department of Health,NHS Sheffield CCG,30/09/2021,C&M-PMS PCN DES PCN support,PRC DELEGATED CO-COMMISSIONING,JAUNTY SPRINGS HEALTH CENTRE,38043857,4371.75,S12 3DZ
Department of Health,NHS Sheffield CCG,30/09/2021,C&M-PMS PCN DES Participation,PRC DELEGATED CO-COMMISSIONING,JAUNTY SPRINGS HEALTH CENTRE,38043857,593.33,S12 3DZ
Department of Health,NHS Sheffield CCG,30/09/2021,C&M-PMS PCN DES Physiotherapist,PRC DELEGATED CO-COMMISSIONING,JAUNTY SPRINGS HEALTH CENTRE,38043857,4735.75,S12 3DZ
Department of Health,NHS Sheffield CCG,30/09/2021,C&M-PMS PCN DES Soc Prescribing,PRC DELEGATED CO-COMMISSIONING,JAUNTY SPRINGS HEALTH CENTRE,38043857,4223.93,S12 3DZ
Department of Health,NHS Sheffield CCG,30/09/2021,C&M-PMS PCO Other,PRC DELEGATED CO-COMMISSIONING,JAUNTY SPRINGS HEALTH CENTRE,38043857,267.9,S12 3DZ
Department of Health,NHS Sheffield CCG,30/09/2021,C&M-PMS Prem Notional Rent,PRC DELEGATED CO-COMMISSIONING,JAUNTY SPRINGS HEALTH CENTRE,38043857,3208.33,S12 3DZ
Department of Health,NHS Sheffield CCG,30/09/2021,C&M-PMS Prem Rates,PRC DELEGATED CO-COMMISSIONING,JAUNTY SPRINGS HEALTH CENTRE,38043857,848,S12 3DZ
Department of Health,NHS Sheffield CCG,30/09/2021,C&M-PMS Prem Water Rates,PRC DELEGATED CO-COMMISSIONING,JAUNTY SPRINGS HEALTH CENTRE,38043857,68.65,S12 3DZ
Department of Health,NHS Sheffield CCG,30/09/2021,C&M-PMS QOF Aspiration,PRC DELEGATED CO-COMMISSIONING,JAUNTY SPRINGS HEALTH CENTRE,38043857,4210.91,S12 3DZ
Department of Health,NHS Sheffield CCG,30/09/2021,C&M-PMS Contract Value,PRC DELEGATED CO-COMMISSIONING,HACKENTHORPE MEDICAL CENTRE,38043859,51366.12,S12 4LA
Department of Health,NHS Sheffield CCG,30/09/2021,C&M-PMS DES Learn Dsblty Hlth Chk,PRC DELEGATED CO-COMMISSIONING,HACKENTHORPE MEDICAL CENTRE,38043859,420,S12 4LA
Department of Health,NHS Sheffield CCG,30/09/2021,C&M-PMS Out of Hours Opt Outs,PRC DELEGATED CO-COMMISSIONING,HACKENTHORPE MEDICAL CENTRE,38043859,60.1,S12 4LA
Department of Health,NHS Sheffield CCG,30/09/2021,C&M-PMS PCN DES Participation,PRC DELEGATED CO-COMMISSIONING,HACKENTHORPE MEDICAL CENTRE,38043859,930.28,S12 4LA
Department of Health,NHS Sheffield CCG,30/09/2021,C&M-PMS PCO Other,PRC DELEGATED CO-COMMISSIONING,HACKENTHORPE MEDICAL CENTRE,38043859,434.8,S12 4LA
Department of Health,NHS Sheffield CCG,30/09/2021,C&M-PMS Prem Notional Rent,PRC DELEGATED CO-COMMISSIONING,HACKENTHORPE MEDICAL CENTRE,38043859,5116.67,S12 4LA
Department of Health,NHS Sheffield CCG,30/09/2021,C&M-PMS Prem Rates,PRC DELEGATED CO-COMMISSIONING,HACKENTHORPE MEDICAL CENTRE,38043859,861,S12 4LA
Department of Health,NHS Sheffield CCG,30/09/2021,C&M-PMS Prem Water Rates,PRC DELEGATED CO-COMMISSIONING,HACKENTHORPE MEDICAL CENTRE,38043859,63.11,S12 4LA
Department of Health,NHS Sheffield CCG,30/09/2021,C&M-PMS QOF Aspiration,PRC DELEGATED CO-COMMISSIONING,HACKENTHORPE MEDICAL CENTRE,38043859,7412.46,S12 4LA
Department of Health,NHS Sheffield CCG,30/09/2021,C&M-PMS Contract Value,PRC DELEGATED CO-COMMISSIONING,MANCHESTER ROAD SURGERY SHEFFIELD,38043861,36151.89,S10 5PN
Department of Health,NHS Sheffield CCG,30/09/2021,C&M-PMS Out of Hours Opt Outs,PRC DELEGATED CO-COMMISSIONING,MANCHESTER ROAD SURGERY SHEFFIELD,38043861,4.47,S10 5PN
Department of Health,NHS Sheffield CCG,30/09/2021,C&M-PMS PCN DES Participation,PRC DELEGATED CO-COMMISSIONING,MANCHESTER ROAD SURGERY SHEFFIELD,38043861,637.95,S10 5PN
Department of Health,NHS Sheffield CCG,30/09/2021,C&M-PMS PCO Locum Sickness,PRC DELEGATED CO-COMMISSIONING,MANCHESTER ROAD SURGERY SHEFFIELD,38043861,867.53,S10 5PN
Department of Health,NHS Sheffield CCG,30/09/2021,C&M-PMS Prem Cost Rent,PRC DELEGATED CO-COMMISSIONING,MANCHESTER ROAD SURGERY SHEFFIELD,38043861,3077.32,S10 5PN
Department of Health,NHS Sheffield CCG,30/09/2021,C&M-PMS Prem Notional Rent,PRC DELEGATED CO-COMMISSIONING,MANCHESTER ROAD SURGERY SHEFFIELD,38043861,442.92,S10 5PN
Department of Health,NHS Sheffield CCG,30/09/2021,C&M-PMS Prem Rates,PRC DELEGATED CO-COMMISSIONING,MANCHESTER ROAD SURGERY SHEFFIELD,38043861,986,S10 5PN
Department of Health,NHS Sheffield CCG,30/09/2021,C&M-PMS Prem Water Rates,PRC DELEGATED CO-COMMISSIONING,MANCHESTER ROAD SURGERY SHEFFIELD,38043861,142.15,S10 5PN
Department of Health,NHS Sheffield CCG,30/09/2021,C&M-PMS QOF Aspiration,PRC DELEGATED CO-COMMISSIONING,MANCHESTER ROAD SURGERY SHEFFIELD,38043861,4634.87,S10 5PN
Department of Health,NHS Sheffield CCG,30/09/2021,C&M-PMS Contract Value,PRC DELEGATED CO-COMMISSIONING,MEADOWHEAD GROUP PRACTICE,38043863,167925.23,S8 7RL
Department of Health,NHS Sheffield CCG,30/09/2021,C&M-PMS DES Learn Dsblty Hlth Chk,PRC DELEGATED CO-COMMISSIONING,MEADOWHEAD GROUP PRACTICE,38043863,1120,S8 7RL
Department of Health,NHS Sheffield CCG,30/09/2021,C&M-PMS Funding Differential Review,PRC DELEGATED CO-COMMISSIONING,MEADOWHEAD GROUP PRACTICE,38043863,1641.85,S8 7RL
Department of Health,NHS Sheffield CCG,30/09/2021,C&M-PMS PCN DES Participation,PRC DELEGATED CO-COMMISSIONING,MEADOWHEAD GROUP PRACTICE,38043863,2652.53,S8 7RL
Department of Health,NHS Sheffield CCG,30/09/2021,C&M-PMS PCO Other,PRC DELEGATED CO-COMMISSIONING,MEADOWHEAD GROUP PRACTICE,38043863,10210,S8 7RL
Department of Health,NHS Sheffield CCG,30/09/2021,C&M-PMS Prem Actual Rent,PRC DELEGATED CO-COMMISSIONING,MEADOWHEAD GROUP PRACTICE,38043863,3358.33,S8 7RL
Department of Health,NHS Sheffield CCG,30/09/2021,C&M-PMS Prem Cost Rent,PRC DELEGATED CO-COMMISSIONING,MEADOWHEAD GROUP PRACTICE,38043863,3647.42,S8 7RL
Department of Health,NHS Sheffield CCG,30/09/2021,C&M-PMS Prem Healthcentre Rent,PRC DELEGATED CO-COMMISSIONING,MEADOWHEAD GROUP PRACTICE,38043863,58781.63,S8 7RL
Department of Health,NHS Sheffield CCG,30/09/2021,C&M-PMS Prem Notional Rent,PRC DELEGATED CO-COMMISSIONING,MEADOWHEAD GROUP PRACTICE,38043863,5666.67,S8 7RL
Department of Health,NHS Sheffield CCG,30/09/2021,C&M-PMS Prem Rates,PRC DELEGATED CO-COMMISSIONING,MEADOWHEAD GROUP PRACTICE,38043863,798,S8 7RL
Department of Health,NHS Sheffield CCG,30/09/2021,C&M-PMS Prem Water Rates,PRC DELEGATED CO-COMMISSIONING,MEADOWHEAD GROUP PRACTICE,38043863,152.99,S8 7RL
Department of Health,NHS Sheffield CCG,30/09/2021,C&M-PMS QOF Aspiration,PRC DELEGATED CO-COMMISSIONING,MEADOWHEAD GROUP PRACTICE,38043863,18711.14,S8 7RL
Department of Health,NHS Sheffield CCG,30/09/2021,C&M-PMS Contract Value,PRC DELEGATED CO-COMMISSIONING,MEADOWHEAD GROUP PRACTICE,38043864,-751.85,S8 7RL
Department of Health,NHS Sheffield CCG,30/09/2021,C&M-PMS GP Statutory Levy,PRC DELEGATED CO-COMMISSIONING,MEADOWHEAD GROUP PRACTICE,38043864,-655.1,S8 7RL
Department of Health,NHS Sheffield CCG,30/09/2021,C&M-PMS Out of Hours Opt Outs,PRC DELEGATED CO-COMMISSIONING,MEADOWHEAD GROUP PRACTICE,38043864,-8168.85,S8 7RL
Department of Health,NHS Sheffield CCG,30/09/2021,C&M-PMS Prem Actual Rent,PRC DELEGATED CO-COMMISSIONING,MEADOWHEAD GROUP PRACTICE,38043864,-3358.33,S8 7RL
Department of Health,NHS Sheffield CCG,30/09/2021,C&M-PMS Prem Cost Rent,PRC DELEGATED CO-COMMISSIONING,MEADOWHEAD GROUP PRACTICE,38043864,-3647.42,S8 7RL
Department of Health,NHS Sheffield CCG,30/09/2021,C&M-PMS Prem Healthcentre Rent,PRC DELEGATED CO-COMMISSIONING,MEADOWHEAD GROUP PRACTICE,38043864,-767.14,S8 7RL
Department of Health,NHS Sheffield CCG,30/09/2021,C&M-PMS Contract Value,PRC DELEGATED CO-COMMISSIONING,NETHERGREEN SURGERY,38043865,69284.79,S11 7EJ
Department of Health,NHS Sheffield CCG,30/09/2021,C&M-PMS Funding Differential Review,PRC DELEGATED CO-COMMISSIONING,NETHERGREEN SURGERY,38043865,1369.87,S11 7EJ
Department of Health,NHS Sheffield CCG,30/09/2021,C&M-PMS PCN DES Participation,PRC DELEGATED CO-COMMISSIONING,NETHERGREEN SURGERY,38043865,1216.05,S11 7EJ
Department of Health,NHS Sheffield CCG,30/09/2021,C&M-PMS Prem Cost Rent,PRC DELEGATED CO-COMMISSIONING,NETHERGREEN SURGERY,38043865,5057.33,S11 7EJ
Department of Health,NHS Sheffield CCG,30/09/2021,C&M-PMS Prem Rates,PRC DELEGATED CO-COMMISSIONING,NETHERGREEN SURGERY,38043865,1285,S11 7EJ
Department of Health,NHS Sheffield CCG,30/09/2021,C&M-PMS QOF Aspiration,PRC DELEGATED CO-COMMISSIONING,NETHERGREEN SURGERY,38043865,7220.24,S11 7EJ
Department of Health,NHS Sheffield CCG,30/09/2021,C&M-PMS Contract Value,PRC DELEGATED CO-COMMISSIONING,MOSBOROUGH HEALTH CENTRE,38043867,53688.83,S20 5BQ
Department of Health,NHS Sheffield CCG,30/09/2021,C&M-PMS DES Learn Dsblty Hlth Chk,PRC DELEGATED CO-COMMISSIONING,MOSBOROUGH HEALTH CENTRE,38043867,560,S20 5BQ
Department of Health,NHS Sheffield CCG,30/09/2021,C&M-PMS Out of Hours Opt Outs,PRC DELEGATED CO-COMMISSIONING,MOSBOROUGH HEALTH CENTRE,38043867,13.22,S20 5BQ
Department of Health,NHS Sheffield CCG,30/09/2021,C&M-PMS PCN DES Participation,PRC DELEGATED CO-COMMISSIONING,MOSBOROUGH HEALTH CENTRE,38043867,972.62,S20 5BQ
Department of Health,NHS Sheffield CCG,30/09/2021,C&M-PMS PCO Other,PRC DELEGATED CO-COMMISSIONING,MOSBOROUGH HEALTH CENTRE,38043867,447.8,S20 5BQ
Department of Health,NHS Sheffield CCG,30/09/2021,C&M-PMS Prem Notional Rent,PRC DELEGATED CO-COMMISSIONING,MOSBOROUGH HEALTH CENTRE,38043867,4541.67,S20 5BQ
Department of Health,NHS Sheffield CCG,30/09/2021,C&M-PMS Prem Rates,PRC DELEGATED CO-COMMISSIONING,MOSBOROUGH HEALTH CENTRE,38043867,711,S20 5BQ
Department of Health,NHS Sheffield CCG,30/09/2021,C&M-PMS QOF Aspiration,PRC DELEGATED CO-COMMISSIONING,MOSBOROUGH HEALTH CENTRE,38043867,6344.52,S20 5BQ
Department of Health,NHS Sheffield CCG,30/09/2021,C&M-PMS Contract Value,PRC DELEGATED CO-COMMISSIONING,BARNSLEY ROAD SURGERY,38043869,21464.94,S5 0QJ
Department of Health,NHS Sheffield CCG,30/09/2021,C&M-PMS DES Learn Dsblty Hlth Chk,PRC DELEGATED CO-COMMISSIONING,BARNSLEY ROAD SURGERY,38043869,840,S5 0QJ
Department of Health,NHS Sheffield CCG,30/09/2021,C&M-PMS Funding Differential Review,PRC DELEGATED CO-COMMISSIONING,BARNSLEY ROAD SURGERY,38043869,506.44,S5 0QJ
Department of Health,NHS Sheffield CCG,30/09/2021,C&M-PMS PCN DES Participation,PRC DELEGATED CO-COMMISSIONING,BARNSLEY ROAD SURGERY,38043869,387.62,S5 0QJ
Department of Health,NHS Sheffield CCG,30/09/2021,C&M-PMS Prem Notional Rent,PRC DELEGATED CO-COMMISSIONING,BARNSLEY ROAD SURGERY,38043869,2751.37,S5 0QJ
Department of Health,NHS Sheffield CCG,30/09/2021,C&M-PMS Prem Rates,PRC DELEGATED CO-COMMISSIONING,BARNSLEY ROAD SURGERY,38043869,674,S5 0QJ
Department of Health,NHS Sheffield CCG,30/09/2021,C&M-PMS Prem Water Rates,PRC DELEGATED CO-COMMISSIONING,BARNSLEY ROAD SURGERY,38043869,52,S5 0QJ
Department of Health,NHS Sheffield CCG,30/09/2021,C&M-PMS QOF Aspiration,PRC DELEGATED CO-COMMISSIONING,BARNSLEY ROAD SURGERY,38043869,2443.92,S5 0QJ
Department of Health,NHS Sheffield CCG,30/09/2021,C&M-PMS Contract Value,PRC DELEGATED CO-COMMISSIONING,RUSTLINGS ROAD MEDICAL CENTRE,38043873,31746.84,S11 7AB
Department of Health,NHS Sheffield CCG,30/09/2021,C&M-PMS Funding Differential Review,PRC DELEGATED CO-COMMISSIONING,RUSTLINGS ROAD MEDICAL CENTRE,38043873,565.04,S11 7AB
Department of Health,NHS Sheffield CCG,30/09/2021,C&M-PMS PCN DES Participation,PRC DELEGATED CO-COMMISSIONING,RUSTLINGS ROAD MEDICAL CENTRE,38043873,544.7,S11 7AB
Department of Health,NHS Sheffield CCG,30/09/2021,C&M-PMS PCO Other,PRC DELEGATED CO-COMMISSIONING,RUSTLINGS ROAD MEDICAL CENTRE,38043873,317.8,S11 7AB
Department of Health,NHS Sheffield CCG,30/09/2021,C&M-PMS Prem Notional Rent,PRC DELEGATED CO-COMMISSIONING,RUSTLINGS ROAD MEDICAL CENTRE,38043873,1487.5,S11 7AB
Department of Health,NHS Sheffield CCG,30/09/2021,C&M-PMS QOF Aspiration,PRC DELEGATED CO-COMMISSIONING,RUSTLINGS ROAD MEDICAL CENTRE,38043873,3313.36,S11 7AB
Department of Health,NHS Sheffield CCG,30/09/2021,C&M-PMS Contract Value,PRC DELEGATED CO-COMMISSIONING,RICHMOND MEDICAL CENTRE,38043875,74025.16,S13 8NA
Department of Health,NHS Sheffield CCG,30/09/2021,C&M-PMS DES Learn Dsblty Hlth Chk,PRC DELEGATED CO-COMMISSIONING,RICHMOND MEDICAL CENTRE,38043875,140,S13 8NA
Department of Health,NHS Sheffield CCG,30/09/2021,C&M-PMS PCN DES Participation,PRC DELEGATED CO-COMMISSIONING,RICHMOND MEDICAL CENTRE,38043875,1317.91,S13 8NA
Department of Health,NHS Sheffield CCG,30/09/2021,C&M-PMS PCO Locum Adop/Pat/Mat,PRC DELEGATED CO-COMMISSIONING,RICHMOND MEDICAL CENTRE,38043875,12736.92,S13 8NA
Department of Health,NHS Sheffield CCG,30/09/2021,C&M-PMS PCO Other,PRC DELEGATED CO-COMMISSIONING,RICHMOND MEDICAL CENTRE,38043875,576.4,S13 8NA
Department of Health,NHS Sheffield CCG,30/09/2021,C&M-PMS Prem Notional Rent,PRC DELEGATED CO-COMMISSIONING,RICHMOND MEDICAL CENTRE,38043875,6429.17,S13 8NA
Department of Health,NHS Sheffield CCG,30/09/2021,C&M-PMS Prem Rates,PRC DELEGATED CO-COMMISSIONING,RICHMOND MEDICAL CENTRE,38043875,1098,S13 8NA
Department of Health,NHS Sheffield CCG,30/09/2021,C&M-PMS QOF Aspiration,PRC DELEGATED CO-COMMISSIONING,RICHMOND MEDICAL CENTRE,38043875,8942.19,S13 8NA
Department of Health,NHS Sheffield CCG,30/09/2021,C&M-PMS Contract Value,PRC DELEGATED CO-COMMISSIONING,SELBORNE ROAD MEDICAL CENTRE,38043877,20223.79,S10 5ND
Department of Health,NHS Sheffield CCG,30/09/2021,C&M-PMS Funding Differential Review,PRC DELEGATED CO-COMMISSIONING,SELBORNE ROAD MEDICAL CENTRE,38043877,478.42,S10 5ND
Department of Health,NHS Sheffield CCG,30/09/2021,C&M-PMS Out of Hours Opt Outs,PRC DELEGATED CO-COMMISSIONING,SELBORNE ROAD MEDICAL CENTRE,38043877,11.88,S10 5ND
Department of Health,NHS Sheffield CCG,30/09/2021,C&M-PMS PCN DES Participation,PRC DELEGATED CO-COMMISSIONING,SELBORNE ROAD MEDICAL CENTRE,38043877,363.66,S10 5ND
Department of Health,NHS Sheffield CCG,30/09/2021,C&M-PMS PCO Other,PRC DELEGATED CO-COMMISSIONING,SELBORNE ROAD MEDICAL CENTRE,38043877,1203,S10 5ND
Department of Health,NHS Sheffield CCG,30/09/2021,C&M-PMS Prem Notional Rent,PRC DELEGATED CO-COMMISSIONING,SELBORNE ROAD MEDICAL CENTRE,38043877,1735.42,S10 5ND
Department of Health,NHS Sheffield CCG,30/09/2021,C&M-PMS Prem Rates,PRC DELEGATED CO-COMMISSIONING,SELBORNE ROAD MEDICAL CENTRE,38043877,3668.75,S10 5ND
Department of Health,NHS Sheffield CCG,30/09/2021,C&M-PMS Prem Water Rates,PRC DELEGATED CO-COMMISSIONING,SELBORNE ROAD MEDICAL CENTRE,38043877,67.5,S10 5ND
Department of Health,NHS Sheffield CCG,30/09/2021,C&M-PMS QOF Aspiration,PRC DELEGATED CO-COMMISSIONING,SELBORNE ROAD MEDICAL CENTRE,38043877,2229.73,S10 5ND
Department of Health,NHS Sheffield CCG,30/09/2021,C&M-PMS Contract Value,PRC DELEGATED CO-COMMISSIONING,OWLTHORPE MEDICAL CENTRE,38043879,34558.52,S20 6PD
Department of Health,NHS Sheffield CCG,30/09/2021,C&M-PMS Out of Hours Opt Outs,PRC DELEGATED CO-COMMISSIONING,OWLTHORPE MEDICAL CENTRE,38043879,25.33,S20 6PD
Department of Health,NHS Sheffield CCG,30/09/2021,C&M-PMS PCN DES Participation,PRC DELEGATED CO-COMMISSIONING,OWLTHORPE MEDICAL CENTRE,38043879,625.13,S20 6PD
Department of Health,NHS Sheffield CCG,30/09/2021,C&M-PMS Prem Actual Rent,PRC DELEGATED CO-COMMISSIONING,OWLTHORPE MEDICAL CENTRE,38043879,7539.58,S20 6PD
Department of Health,NHS Sheffield CCG,30/09/2021,C&M-PMS Prem Rates,PRC DELEGATED CO-COMMISSIONING,OWLTHORPE MEDICAL CENTRE,38043879,1023,S20 6PD
Department of Health,NHS Sheffield CCG,30/09/2021,C&M-PMS QOF Aspiration,PRC DELEGATED CO-COMMISSIONING,OWLTHORPE MEDICAL CENTRE,38043879,4236.51,S20 6PD
Department of Health,NHS Sheffield CCG,30/09/2021,C&M-PMS Contract Value,PRC DELEGATED CO-COMMISSIONING,FORGE HEALTH GROUP,38043881,-650.39,S3 9DL
Department of Health,NHS Sheffield CCG,30/09/2021,C&M-PMS GP Statutory Levy,PRC DELEGATED CO-COMMISSIONING,FORGE HEALTH GROUP,38043881,-527.07,S3 9DL
Department of Health,NHS Sheffield CCG,30/09/2021,C&M-PMS Out of Hours Opt Outs,PRC DELEGATED CO-COMMISSIONING,FORGE HEALTH GROUP,38043881,-6184.92,S3 9DL
Department of Health,NHS Sheffield CCG,30/09/2021,C&M-PMS Contract Value,PRC DELEGATED CO-COMMISSIONING,PORTER BROOK MEDICAL CENTRE,38043882,167407.36,S11 8HN
Department of Health,NHS Sheffield CCG,30/09/2021,C&M-PMS DES Learn Dsblty Hlth Chk,PRC DELEGATED CO-COMMISSIONING,PORTER BROOK MEDICAL CENTRE,38043882,280,S11 8HN
Department of Health,NHS Sheffield CCG,30/09/2021,C&M-PMS Funding Differential Review,PRC DELEGATED CO-COMMISSIONING,PORTER BROOK MEDICAL CENTRE,38043882,3636.27,S11 8HN
Department of Health,NHS Sheffield CCG,30/09/2021,C&M-PMS Out of Hours Opt Outs,PRC DELEGATED CO-COMMISSIONING,PORTER BROOK MEDICAL CENTRE,38043882,349.4,S11 8HN
Department of Health,NHS Sheffield CCG,30/09/2021,C&M-PMS PCN DES Participation,PRC DELEGATED CO-COMMISSIONING,PORTER BROOK MEDICAL CENTRE,38043882,3019.37,S11 8HN
Department of Health,NHS Sheffield CCG,30/09/2021,C&M-PMS PCO Other,PRC DELEGATED CO-COMMISSIONING,PORTER BROOK MEDICAL CENTRE,38043882,10172.4,S11 8HN
Department of Health,NHS Sheffield CCG,30/09/2021,C&M-PMS Prem Actual Rent,PRC DELEGATED CO-COMMISSIONING,PORTER BROOK MEDICAL CENTRE,38043882,1666.67,S11 8HN
Department of Health,NHS Sheffield CCG,30/09/2021,C&M-PMS Prem Notional Rent,PRC DELEGATED CO-COMMISSIONING,PORTER BROOK MEDICAL CENTRE,38043882,11600.01,S11 8HN
Department of Health,NHS Sheffield CCG,30/09/2021,C&M-PMS Prem Rates,PRC DELEGATED CO-COMMISSIONING,PORTER BROOK MEDICAL CENTRE,38043882,1812,S11 8HN
Department of Health,NHS Sheffield CCG,30/09/2021,C&M-PMS QOF Aspiration,PRC DELEGATED CO-COMMISSIONING,PORTER BROOK MEDICAL CENTRE,38043882,11257.41,S11 8HN
Department of Health,NHS Sheffield CCG,30/09/2021,C&M-PMS Contract Value,PRC DELEGATED CO-COMMISSIONING,PORTER BROOK MEDICAL CENTRE,38043883,-7835.57,S11 8HN
Department of Health,NHS Sheffield CCG,30/09/2021,C&M-PMS GP Statutory Levy,PRC DELEGATED CO-COMMISSIONING,PORTER BROOK MEDICAL CENTRE,38043883,-971.5,S11 8HN
Department of Health,NHS Sheffield CCG,30/09/2021,C&M-PMS Out of Hours Opt Outs,PRC DELEGATED CO-COMMISSIONING,PORTER BROOK MEDICAL CENTRE,38043883,-7856.53,S11 8HN
Department of Health,NHS Sheffield CCG,30/09/2021,C&M-PMS Prem Notional Rent,PRC DELEGATED CO-COMMISSIONING,PORTER BROOK MEDICAL CENTRE,38043883,-1666.67,S11 8HN
Department of Health,NHS Sheffield CCG,30/09/2021,C&M-PMS Contract Value,PRC DELEGATED CO-COMMISSIONING,PAGE HALL MEDICAL CENTRE,38043884,60848.74,S4 8GB
Department of Health,NHS Sheffield CCG,30/09/2021,C&M-PMS DES Learn Dsblty Hlth Chk,PRC DELEGATED CO-COMMISSIONING,PAGE HALL MEDICAL CENTRE,38043884,280,S4 8GB
Department of Health,NHS Sheffield CCG,30/09/2021,C&M-PMS Funding Differential Review,PRC DELEGATED CO-COMMISSIONING,PAGE HALL MEDICAL CENTRE,38043884,1161.37,S4 8GB
Department of Health,NHS Sheffield CCG,30/09/2021,C&M-PMS Out of Hours Opt Outs,PRC DELEGATED CO-COMMISSIONING,PAGE HALL MEDICAL CENTRE,38043884,43.5,S4 8GB
Department of Health,NHS Sheffield CCG,30/09/2021,C&M-PMS PCN DES Participation,PRC DELEGATED CO-COMMISSIONING,PAGE HALL MEDICAL CENTRE,38043884,1099.51,S4 8GB
Department of Health,NHS Sheffield CCG,30/09/2021,C&M-PMS PCO Other,PRC DELEGATED CO-COMMISSIONING,PAGE HALL MEDICAL CENTRE,38043884,3029.4,S4 8GB
Department of Health,NHS Sheffield CCG,30/09/2021,C&M-PMS Prem Notional Rent,PRC DELEGATED CO-COMMISSIONING,PAGE HALL MEDICAL CENTRE,38043884,4833.33,S4 8GB
Department of Health,NHS Sheffield CCG,30/09/2021,C&M-PMS Prem Rates,PRC DELEGATED CO-COMMISSIONING,PAGE HALL MEDICAL CENTRE,38043884,848,S4 8GB
Department of Health,NHS Sheffield CCG,30/09/2021,C&M-PMS Prem Water Rates,PRC DELEGATED CO-COMMISSIONING,PAGE HALL MEDICAL CENTRE,38043884,170.44,S4 8GB
Department of Health,NHS Sheffield CCG,30/09/2021,C&M-PMS QOF Aspiration,PRC DELEGATED CO-COMMISSIONING,PAGE HALL MEDICAL CENTRE,38043884,5580.35,S4 8GB
Department of Health,NHS Sheffield CCG,30/09/2021,C&M-PMS Contract Value,PRC DELEGATED CO-COMMISSIONING,BURNGREAVE SURGERY,38043888,59337.84,S3 9DA
Department of Health,NHS Sheffield CCG,30/09/2021,C&M-PMS DES Learn Dsblty Hlth Chk,PRC DELEGATED CO-COMMISSIONING,BURNGREAVE SURGERY,38043888,980,S3 9DA
Department of Health,NHS Sheffield CCG,30/09/2021,C&M-PMS Out of Hours Opt Outs,PRC DELEGATED CO-COMMISSIONING,BURNGREAVE SURGERY,38043888,38.63,S3 9DA
Department of Health,NHS Sheffield CCG,30/09/2021,C&M-PMS PCN DES Participation,PRC DELEGATED CO-COMMISSIONING,BURNGREAVE SURGERY,38043888,1072.06,S3 9DA
Department of Health,NHS Sheffield CCG,30/09/2021,C&M-PMS Prem Notional Rent,PRC DELEGATED CO-COMMISSIONING,BURNGREAVE SURGERY,38043888,6622.92,S3 9DA
Department of Health,NHS Sheffield CCG,30/09/2021,C&M-PMS Prem Rates,PRC DELEGATED CO-COMMISSIONING,BURNGREAVE SURGERY,38043888,2340,S3 9DA
Department of Health,NHS Sheffield CCG,30/09/2021,C&M-PMS QOF Aspiration,PRC DELEGATED CO-COMMISSIONING,BURNGREAVE SURGERY,38043888,5671.9,S3 9DA
Department of Health,NHS Sheffield CCG,30/09/2021,C&M-PMS Contract Value,PRC DELEGATED CO-COMMISSIONING,BURNCROSS SURGERY,38043890,127123.64,S35 1RN
Department of Health,NHS Sheffield CCG,30/09/2021,C&M-PMS DES Learn Dsblty Hlth Chk,PRC DELEGATED CO-COMMISSIONING,BURNCROSS SURGERY,38043890,280,S35 1RN
Department of Health,NHS Sheffield CCG,30/09/2021,C&M-PMS Funding Differential Review,PRC DELEGATED CO-COMMISSIONING,BURNCROSS SURGERY,38043890,2746.32,S35 1RN
Department of Health,NHS Sheffield CCG,30/09/2021,C&M-PMS PCN DES Participation,PRC DELEGATED CO-COMMISSIONING,BURNCROSS SURGERY,38043890,2296.43,S35 1RN
Department of Health,NHS Sheffield CCG,30/09/2021,C&M-PMS Prem Notional Rent,PRC DELEGATED CO-COMMISSIONING,BURNCROSS SURGERY,38043890,14919.67,S35 1RN
Department of Health,NHS Sheffield CCG,30/09/2021,C&M-PMS QOF Aspiration,PRC DELEGATED CO-COMMISSIONING,BURNCROSS SURGERY,38043890,16606.07,S35 1RN
Department of Health,NHS Sheffield CCG,30/09/2021,C&M-PMS Contract Value,PRC DELEGATED CO-COMMISSIONING,BURNCROSS SURGERY,38043891,-3810.48,S35 1RN
Department of Health,NHS Sheffield CCG,30/09/2021,C&M-PMS GP Statutory Levy,PRC DELEGATED CO-COMMISSIONING,BURNCROSS SURGERY,38043891,-521.33,S35 1RN
Department of Health,NHS Sheffield CCG,30/09/2021,C&M-APMS Contract Value,PRC DELEGATED CO-COMMISSIONING,CLOVER GROUP PRACTICE,38043892,126289.47,S9 4QH
Department of Health,NHS Sheffield CCG,30/09/2021,C&M-APMS DES Learn Dsblty Hlth Chk,PRC DELEGATED CO-COMMISSIONING,CLOVER GROUP PRACTICE,38043892,280,S9 4QH
Department of Health,NHS Sheffield CCG,30/09/2021,C&M-APMS OOH Opt Outs,PRC DELEGATED CO-COMMISSIONING,CLOVER GROUP PRACTICE,38043892,981.37,S9 4QH
Department of Health,NHS Sheffield CCG,30/09/2021,C&M-APMS PCN DES Participation,PRC DELEGATED CO-COMMISSIONING,CLOVER GROUP PRACTICE,38043892,2290.04,S9 4QH
Department of Health,NHS Sheffield CCG,30/09/2021,C&M-APMS Prem Actual Rent,PRC DELEGATED CO-COMMISSIONING,CLOVER GROUP PRACTICE,38043892,5169.68,S9 4QH
Department of Health,NHS Sheffield CCG,30/09/2021,C&M-APMS Prem Healthcentre Rent,PRC DELEGATED CO-COMMISSIONING,CLOVER GROUP PRACTICE,38043892,121061.55,S9 4QH
Department of Health,NHS Sheffield CCG,30/09/2021,C&M-APMS Prem Notional Rent,PRC DELEGATED CO-COMMISSIONING,CLOVER GROUP PRACTICE,38043892,2804.17,S9 4QH
Department of Health,NHS Sheffield CCG,30/09/2021,C&M-APMS QOF Aspiration,PRC DELEGATED CO-COMMISSIONING,CLOVER GROUP PRACTICE,38043892,9965.6,S9 4QH
Department of Health,NHS Sheffield CCG,30/09/2021,C&M-APMS Contract Value,PRC DELEGATED CO-COMMISSIONING,CLOVER GROUP PRACTICE,38043893,-16847.86,S9 4QH
Department of Health,NHS Sheffield CCG,30/09/2021,C&M-APMS OOH Opt Outs,PRC DELEGATED CO-COMMISSIONING,CLOVER GROUP PRACTICE,38043893,-5957.96,S9 4QH
Department of Health,NHS Sheffield CCG,30/09/2021,C&M-APMS Prem Healthcentre Rent,PRC DELEGATED CO-COMMISSIONING,CLOVER GROUP PRACTICE,38043893,-301.67,S9 4QH
Department of Health,NHS Sheffield CCG,30/09/2021,C&M-PMS GP Statutory Levy,PRC DELEGATED CO-COMMISSIONING,CLOVER GROUP PRACTICE,38043893,-525.32,S9 4QH
Department of Health,NHS Sheffield CCG,30/09/2021,C&M-PMS Contract Value,PRC DELEGATED CO-COMMISSIONING,BIRLEY HEALTH CENTRE,38043894,68921.51,S12 3BP
Department of Health,NHS Sheffield CCG,30/09/2021,C&M-PMS DES Learn Dsblty Hlth Chk,PRC DELEGATED CO-COMMISSIONING,BIRLEY HEALTH CENTRE,38043894,280,S12 3BP
Department of Health,NHS Sheffield CCG,30/09/2021,C&M-PMS PCN DES Participation,PRC DELEGATED CO-COMMISSIONING,BIRLEY HEALTH CENTRE,38043894,1224.59,S12 3BP
Department of Health,NHS Sheffield CCG,30/09/2021,C&M-PMS Prem Notional Rent,PRC DELEGATED CO-COMMISSIONING,BIRLEY HEALTH CENTRE,38043894,7600.58,S12 3BP
Department of Health,NHS Sheffield CCG,30/09/2021,C&M-PMS Prem Rates,PRC DELEGATED CO-COMMISSIONING,BIRLEY HEALTH CENTRE,38043894,895,S12 3BP
Department of Health,NHS Sheffield CCG,30/09/2021,C&M-PMS QOF Aspiration,PRC DELEGATED CO-COMMISSIONING,BIRLEY HEALTH CENTRE,38043894,9091.12,S12 3BP
Department of Health,NHS Sheffield CCG,30/09/2021,C&M-PMS Contract Value,PRC DELEGATED CO-COMMISSIONING,SLOAN MEDICAL CENTRE,38043896,103009.72,S8 0YH
Department of Health,NHS Sheffield CCG,30/09/2021,C&M-PMS Out of Hours Opt Outs,PRC DELEGATED CO-COMMISSIONING,SLOAN MEDICAL CENTRE,38043896,7.54,S8 0YH
Department of Health,NHS Sheffield CCG,30/09/2021,C&M-PMS PCN DES Participation,PRC DELEGATED CO-COMMISSIONING,SLOAN MEDICAL CENTRE,38043896,1849.06,S8 0YH
Department of Health,NHS Sheffield CCG,30/09/2021,C&M-PMS PCO Other,PRC DELEGATED CO-COMMISSIONING,SLOAN MEDICAL CENTRE,38043896,819.8,S8 0YH
Department of Health,NHS Sheffield CCG,30/09/2021,C&M-PMS Prem Notional Rent,PRC DELEGATED CO-COMMISSIONING,SLOAN MEDICAL CENTRE,38043896,747.5,S8 0YH
Department of Health,NHS Sheffield CCG,30/09/2021,C&M-PMS QOF Aspiration,PRC DELEGATED CO-COMMISSIONING,SLOAN MEDICAL CENTRE,38043896,11256.38,S8 0YH
Department of Health,NHS Sheffield CCG,30/09/2021,C&M-PMS Contract Value,PRC DELEGATED CO-COMMISSIONING,SLOAN MEDICAL CENTRE,38043897,-645.33,S8 0YH
Department of Health,NHS Sheffield CCG,30/09/2021,C&M-PMS GP Statutory Levy,PRC DELEGATED CO-COMMISSIONING,SLOAN MEDICAL CENTRE,38043897,-475.41,S8 0YH
Department of Health,NHS Sheffield CCG,30/09/2021,C&M-PMS Out of Hours Opt Outs,PRC DELEGATED CO-COMMISSIONING,SLOAN MEDICAL CENTRE,38043897,-4853.61,S8 0YH
Department of Health,NHS Sheffield CCG,30/09/2021,C&M-PMS Contract Value,PRC DELEGATED CO-COMMISSIONING,SOTHALL MEDICAL CENTRE,38043898,75689.4,S20 1HQ
Department of Health,NHS Sheffield CCG,30/09/2021,C&M-PMS Out of Hours Opt Outs,PRC DELEGATED CO-COMMISSIONING,SOTHALL MEDICAL CENTRE,38043898,64.51,S20 1HQ
Department of Health,NHS Sheffield CCG,30/09/2021,C&M-PMS PCN DES Participation,PRC DELEGATED CO-COMMISSIONING,SOTHALL MEDICAL CENTRE,38043898,1370.05,S20 1HQ
Department of Health,NHS Sheffield CCG,30/09/2021,C&M-PMS PCO Other,PRC DELEGATED CO-COMMISSIONING,SOTHALL MEDICAL CENTRE,38043898,626.1,S20 1HQ
Department of Health,NHS Sheffield CCG,30/09/2021,C&M-PMS Prem Notional Rent,PRC DELEGATED CO-COMMISSIONING,SOTHALL MEDICAL CENTRE,38043898,5116.67,S20 1HQ
Department of Health,NHS Sheffield CCG,30/09/2021,C&M-PMS Prem Rates,PRC DELEGATED CO-COMMISSIONING,SOTHALL MEDICAL CENTRE,38043898,617,S20 1HQ
Department of Health,NHS Sheffield CCG,30/09/2021,C&M-PMS QOF Aspiration,PRC DELEGATED CO-COMMISSIONING,SOTHALL MEDICAL CENTRE,38043898,9478.91,S20 1HQ
Department of Health,NHS Sheffield CCG,30/09/2021,C&M-PMS Contract Value,PRC DELEGATED CO-COMMISSIONING,SOUTHEY GREEN MEDICAL CENTRE,38043900,26049.77,S5 7QB
Department of Health,NHS Sheffield CCG,30/09/2021,C&M-PMS Funding Differential Review,PRC DELEGATED CO-COMMISSIONING,SOUTHEY GREEN MEDICAL CENTRE,38043900,612.28,S5 7QB
Department of Health,NHS Sheffield CCG,30/09/2021,C&M-PMS Out of Hours Opt Outs,PRC DELEGATED CO-COMMISSIONING,SOUTHEY GREEN MEDICAL CENTRE,38043900,44.22,S5 7QB
Department of Health,NHS Sheffield CCG,30/09/2021,C&M-PMS PCN DES Participation,PRC DELEGATED CO-COMMISSIONING,SOUTHEY GREEN MEDICAL CENTRE,38043900,470.48,S5 7QB
Department of Health,NHS Sheffield CCG,30/09/2021,C&M-PMS PCO Other,PRC DELEGATED CO-COMMISSIONING,SOUTHEY GREEN MEDICAL CENTRE,38043900,2168,S5 7QB
Department of Health,NHS Sheffield CCG,30/09/2021,C&M-PMS Prem Notional Rent,PRC DELEGATED CO-COMMISSIONING,SOUTHEY GREEN MEDICAL CENTRE,38043900,3362.5,S5 7QB
Department of Health,NHS Sheffield CCG,30/09/2021,C&M-PMS QOF Aspiration,PRC DELEGATED CO-COMMISSIONING,SOUTHEY GREEN MEDICAL CENTRE,38043900,2998.01,S5 7QB
Department of Health,NHS Sheffield CCG,30/09/2021,C&M- PCN DES Nursing Associate,PRC DELEGATED CO-COMMISSIONING,DYKES HALL MEDICAL CENTRE,38043903,4699.53,S6 4GQ
Department of Health,NHS Sheffield CCG,30/09/2021,C&M-PCN DES PHARMACY TECHNICIANS,PRC DELEGATED CO-COMMISSIONING,DYKES HALL MEDICAL CENTRE,38043903,3130.34,S6 4GQ
Department of Health,NHS Sheffield CCG,30/09/2021,C&M-PMS Contract Value,PRC DELEGATED CO-COMMISSIONING,DYKES HALL MEDICAL CENTRE,38043903,74345.31,S6 4GQ
Department of Health,NHS Sheffield CCG,30/09/2021,C&M-PMS DES Extended Hours Access,PRC DELEGATED CO-COMMISSIONING,DYKES HALL MEDICAL CENTRE,38043903,4281.12,S6 4GQ
Department of Health,NHS Sheffield CCG,30/09/2021,C&M-PMS DES Learn Dsblty Hlth Chk,PRC DELEGATED CO-COMMISSIONING,DYKES HALL MEDICAL CENTRE,38043903,420,S6 4GQ
Department of Health,NHS Sheffield CCG,30/09/2021,C&M-PMS Funding Differential Review,PRC DELEGATED CO-COMMISSIONING,DYKES HALL MEDICAL CENTRE,38043903,1473.36,S6 4GQ
Department of Health,NHS Sheffield CCG,30/09/2021,C&M-PMS Out of Hours Opt Outs,PRC DELEGATED CO-COMMISSIONING,DYKES HALL MEDICAL CENTRE,38043903,105.91,S6 4GQ
Department of Health,NHS Sheffield CCG,30/09/2021,C&M-PMS PCN DES Clin Pharmacist,PRC DELEGATED CO-COMMISSIONING,DYKES HALL MEDICAL CENTRE,38043903,16389.11,S6 4GQ
Department of Health,NHS Sheffield CCG,30/09/2021,C&M-PMS PCN DES Clinical Director,PRC DELEGATED CO-COMMISSIONING,DYKES HALL MEDICAL CENTRE,38043903,4364.37,S6 4GQ
Department of Health,NHS Sheffield CCG,30/09/2021,C&M-PMS PCN DES PCN support,PRC DELEGATED CO-COMMISSIONING,DYKES HALL MEDICAL CENTRE,38043903,4459.5,S6 4GQ
Department of Health,NHS Sheffield CCG,30/09/2021,C&M-PMS PCN DES Participation,PRC DELEGATED CO-COMMISSIONING,DYKES HALL MEDICAL CENTRE,38043903,1345.01,S6 4GQ
Department of Health,NHS Sheffield CCG,30/09/2021,C&M-PMS PCN DES Physiotherapist,PRC DELEGATED CO-COMMISSIONING,DYKES HALL MEDICAL CENTRE,38043903,6494.84,S6 4GQ
Department of Health,NHS Sheffield CCG,30/09/2021,C&M-PMS PCN DES Soc Prescribing,PRC DELEGATED CO-COMMISSIONING,DYKES HALL MEDICAL CENTRE,38043903,2949,S6 4GQ
Department of Health,NHS Sheffield CCG,30/09/2021,C&M-PMS PCO Other,PRC DELEGATED CO-COMMISSIONING,DYKES HALL MEDICAL CENTRE,38043903,5895,S6 4GQ
Department of Health,NHS Sheffield CCG,30/09/2021,C&M-PMS Prem Notional Rent,PRC DELEGATED CO-COMMISSIONING,DYKES HALL MEDICAL CENTRE,38043903,6131.25,S6 4GQ
Department of Health,NHS Sheffield CCG,30/09/2021,C&M-PMS Prem Rates,PRC DELEGATED CO-COMMISSIONING,DYKES HALL MEDICAL CENTRE,38043903,910,S6 4GQ
Department of Health,NHS Sheffield CCG,30/09/2021,C&M-PMS QOF Aspiration,PRC DELEGATED CO-COMMISSIONING,DYKES HALL MEDICAL CENTRE,38043903,9390.15,S6 4GQ
Department of Health,NHS Sheffield CCG,30/09/2021,C&M-PMS Contract Value,PRC DELEGATED CO-COMMISSIONING,EAST BANK MEDICAL CENTRE,38043905,54616.84,S2 2AG
Department of Health,NHS Sheffield CCG,30/09/2021,C&M-PMS PCN DES Participation,PRC DELEGATED CO-COMMISSIONING,EAST BANK MEDICAL CENTRE,38043905,945.64,S2 2AG
Department of Health,NHS Sheffield CCG,30/09/2021,C&M-PMS Prem Notional Rent,PRC DELEGATED CO-COMMISSIONING,EAST BANK MEDICAL CENTRE,38043905,10583.33,S2 2AG
Department of Health,NHS Sheffield CCG,30/09/2021,C&M-PMS Prem Rates,PRC DELEGATED CO-COMMISSIONING,EAST BANK MEDICAL CENTRE,38043905,2065,S2 2AG
Department of Health,NHS Sheffield CCG,30/09/2021,C&M-PMS QOF Aspiration,PRC DELEGATED CO-COMMISSIONING,EAST BANK MEDICAL CENTRE,38043905,5744.23,S2 2AG
Department of Health,NHS Sheffield CCG,30/09/2021,C&M-PMS Contract Value,PRC DELEGATED CO-COMMISSIONING,EAST BANK MEDICAL CENTRE,38043906,-268.04,S2 2AG
Department of Health,NHS Sheffield CCG,30/09/2021,C&M-PMS GP Statutory Levy,PRC DELEGATED CO-COMMISSIONING,EAST BANK MEDICAL CENTRE,38043906,-218.82,S2 2AG
Department of Health,NHS Sheffield CCG,30/09/2021,C&M-PMS Out of Hours Opt Outs,PRC DELEGATED CO-COMMISSIONING,EAST BANK MEDICAL CENTRE,38043906,-2576.84,S2 2AG
Department of Health,NHS Sheffield CCG,30/09/2021,C&M-PMS Contract Value,PRC DELEGATED CO-COMMISSIONING,DR MEHROTRA & PARTNER,38043907,28077.73,S9 5DH
Department of Health,NHS Sheffield CCG,30/09/2021,C&M-PMS Funding Differential Review,PRC DELEGATED CO-COMMISSIONING,DR MEHROTRA & PARTNER,38043907,520.47,S9 5DH
Department of Health,NHS Sheffield CCG,30/09/2021,C&M-PMS PCN DES Participation,PRC DELEGATED CO-COMMISSIONING,DR MEHROTRA & PARTNER,38043907,457.08,S9 5DH
Department of Health,NHS Sheffield CCG,30/09/2021,C&M-PMS Prem Notional Rent,PRC DELEGATED CO-COMMISSIONING,DR MEHROTRA & PARTNER,38043907,5157.29,S9 5DH
Department of Health,NHS Sheffield CCG,30/09/2021,C&M-PMS QOF Aspiration,PRC DELEGATED CO-COMMISSIONING,DR MEHROTRA & PARTNER,38043907,2925.04,S9 5DH
Department of Health,NHS Sheffield CCG,30/09/2021,C&M-PMS Contract Value,PRC DELEGATED CO-COMMISSIONING,DEEPCAR MEDICAL CENTRE,38043909,43351.63,S36 2RA
Department of Health,NHS Sheffield CCG,30/09/2021,C&M-PMS Out of Hours Opt Outs,PRC DELEGATED CO-COMMISSIONING,DEEPCAR MEDICAL CENTRE,38043909,46.69,S36 2RA
Department of Health,NHS Sheffield CCG,30/09/2021,C&M-PMS PCN DES Participation,PRC DELEGATED CO-COMMISSIONING,DEEPCAR MEDICAL CENTRE,38043909,784.44,S36 2RA
Department of Health,NHS Sheffield CCG,30/09/2021,C&M-PMS Prem Healthcentre Rent,PRC DELEGATED CO-COMMISSIONING,DEEPCAR MEDICAL CENTRE,38043909,40360.68,S36 2RA
Department of Health,NHS Sheffield CCG,30/09/2021,C&M-PMS QOF Aspiration,PRC DELEGATED CO-COMMISSIONING,DEEPCAR MEDICAL CENTRE,38043909,4692.44,S36 2RA
Department of Health,NHS Sheffield CCG,30/09/2021,C&M-PMS Contract Value,PRC DELEGATED CO-COMMISSIONING,FALKLAND HOUSE,38043911,28104.32,S11 7PL
Department of Health,NHS Sheffield CCG,30/09/2021,C&M-PMS PCN DES Participation,PRC DELEGATED CO-COMMISSIONING,FALKLAND HOUSE,38043911,501.49,S11 7PL
Department of Health,NHS Sheffield CCG,30/09/2021,C&M-PMS PCO Other,PRC DELEGATED CO-COMMISSIONING,FALKLAND HOUSE,38043911,278.9,S11 7PL
Department of Health,NHS Sheffield CCG,30/09/2021,C&M-PMS Prem Notional Rent,PRC DELEGATED CO-COMMISSIONING,FALKLAND HOUSE,38043911,1904.17,S11 7PL
Department of Health,NHS Sheffield CCG,30/09/2021,C&M-PMS Prem Rates,PRC DELEGATED CO-COMMISSIONING,FALKLAND HOUSE,38043911,786,S11 7PL
Department of Health,NHS Sheffield CCG,30/09/2021,C&M-PMS QOF Aspiration,PRC DELEGATED CO-COMMISSIONING,FALKLAND HOUSE,38043911,3442.87,S11 7PL
Department of Health,NHS Sheffield CCG,30/09/2021,C&M-PMS Contract Value,PRC DELEGATED CO-COMMISSIONING,DR MILNER & PARTNERS,38043913,81252.64,S6 4JQ
Department of Health,NHS Sheffield CCG,30/09/2021,C&M-PMS Out of Hours Opt Outs,PRC DELEGATED CO-COMMISSIONING,DR MILNER & PARTNERS,38043913,47.36,S6 4JQ
Department of Health,NHS Sheffield CCG,30/09/2021,C&M-PMS PCN DES Participation,PRC DELEGATED CO-COMMISSIONING,DR MILNER & PARTNERS,38043913,1456.05,S6 4JQ
Department of Health,NHS Sheffield CCG,30/09/2021,C&M-PMS Prem Actual Rent,PRC DELEGATED CO-COMMISSIONING,DR MILNER & PARTNERS,38043913,11382,S6 4JQ
Department of Health,NHS Sheffield CCG,30/09/2021,C&M-PMS Prem Notional Rent,PRC DELEGATED CO-COMMISSIONING,DR MILNER & PARTNERS,38043913,15996.59,S6 4JQ
Department of Health,NHS Sheffield CCG,30/09/2021,C&M-PMS Prem Rates,PRC DELEGATED CO-COMMISSIONING,DR MILNER & PARTNERS,38043913,1944,S6 4JQ
Department of Health,NHS Sheffield CCG,30/09/2021,C&M-PMS QOF Aspiration,PRC DELEGATED CO-COMMISSIONING,DR MILNER & PARTNERS,38043913,7661.13,S6 4JQ
Department of Health,NHS Sheffield CCG,30/09/2021,C&M-PMS Contract Value,PRC DELEGATED CO-COMMISSIONING,DR MILNER & PARTNERS,38043914,-1174.09,S6 4JQ
Department of Health,NHS Sheffield CCG,30/09/2021,C&M-PMS GP Statutory Levy,PRC DELEGATED CO-COMMISSIONING,DR MILNER & PARTNERS,38043914,-374.68,S6 4JQ
Department of Health,NHS Sheffield CCG,30/09/2021,C&M-PMS Out of Hours Opt Outs,PRC DELEGATED CO-COMMISSIONING,DR MILNER & PARTNERS,38043914,-3831.2,S6 4JQ
Department of Health,NHS Sheffield CCG,30/09/2021,C&M-PMS Prem Notional Rent,PRC DELEGATED CO-COMMISSIONING,DR MILNER & PARTNERS,38043914,-11382,S6 4JQ
Department of Health,NHS Sheffield CCG,30/09/2021,C&M-PMS Contract Value,PRC DELEGATED CO-COMMISSIONING,DOVERCOURT SURGERY,38043915,81348.62,S2 5FX
Department of Health,NHS Sheffield CCG,30/09/2021,C&M-PMS DES Learn Dsblty Hlth Chk,PRC DELEGATED CO-COMMISSIONING,DOVERCOURT SURGERY,38043915,420,S2 5FX
Department of Health,NHS Sheffield CCG,30/09/2021,C&M-PMS Out of Hours Opt Outs,PRC DELEGATED CO-COMMISSIONING,DOVERCOURT SURGERY,38043915,15.86,S2 5FX
Department of Health,NHS Sheffield CCG,30/09/2021,C&M-PMS PCN DES Participation,PRC DELEGATED CO-COMMISSIONING,DOVERCOURT SURGERY,38043915,1436.25,S2 5FX
Department of Health,NHS Sheffield CCG,30/09/2021,C&M-PMS PCO Other,PRC DELEGATED CO-COMMISSIONING,DOVERCOURT SURGERY,38043915,552,S2 5FX
Department of Health,NHS Sheffield CCG,30/09/2021,C&M-PMS Prem Actual Rent,PRC DELEGATED CO-COMMISSIONING,DOVERCOURT SURGERY,38043915,14108.33,S2 5FX
Department of Health,NHS Sheffield CCG,30/09/2021,C&M-PMS Prem Notional Rent,PRC DELEGATED CO-COMMISSIONING,DOVERCOURT SURGERY,38043915,2158.33,S2 5FX
Department of Health,NHS Sheffield CCG,30/09/2021,C&M-PMS QOF Aspiration,PRC DELEGATED CO-COMMISSIONING,DOVERCOURT SURGERY,38043915,9527,S2 5FX
Department of Health,NHS Sheffield CCG,30/09/2021,C&M-PMS Contract Value,PRC DELEGATED CO-COMMISSIONING,FIRTH PARK SURGERY,38043917,80907.98,S5 6HH
Department of Health,NHS Sheffield CCG,30/09/2021,C&M-PMS Out of Hours Opt Outs,PRC DELEGATED CO-COMMISSIONING,FIRTH PARK SURGERY,38043917,122.57,S5 6HH
Department of Health,NHS Sheffield CCG,30/09/2021,C&M-PMS PCN DES Participation,PRC DELEGATED CO-COMMISSIONING,FIRTH PARK SURGERY,38043917,1461.7,S5 6HH
Department of Health,NHS Sheffield CCG,30/09/2021,C&M-PMS Prem Notional Rent,PRC DELEGATED CO-COMMISSIONING,FIRTH PARK SURGERY,38043917,4666.67,S5 6HH
Department of Health,NHS Sheffield CCG,30/09/2021,C&M-PMS Prem Rates,PRC DELEGATED CO-COMMISSIONING,FIRTH PARK SURGERY,38043917,1508,S5 6HH
Department of Health,NHS Sheffield CCG,30/09/2021,C&M-PMS QOF Aspiration,PRC DELEGATED CO-COMMISSIONING,FIRTH PARK SURGERY,38043917,8220.05,S5 6HH
Department of Health,NHS Sheffield CCG,30/09/2021,C&M-PCN DES Trainee Nursing Associate,PRC DELEGATED CO-COMMISSIONING,UNIVERSITY HEALTH SERVICE,38043919,1836.94,S3 7QP
Department of Health,NHS Sheffield CCG,30/09/2021,C&M-PMS Contract Value,PRC DELEGATED CO-COMMISSIONING,UNIVERSITY HEALTH SERVICE,38043919,202981.57,S3 7QP
Department of Health,NHS Sheffield CCG,30/09/2021,C&M-PMS DES Extended Hours Access,PRC DELEGATED CO-COMMISSIONING,UNIVERSITY HEALTH SERVICE,38043919,4876.32,S3 7QP
Department of Health,NHS Sheffield CCG,30/09/2021,C&M-PMS Out of Hours Opt Outs,PRC DELEGATED CO-COMMISSIONING,UNIVERSITY HEALTH SERVICE,38043919,2111.77,S3 7QP
Department of Health,NHS Sheffield CCG,30/09/2021,C&M-PMS PCN DES Clin Pharmacist,PRC DELEGATED CO-COMMISSIONING,UNIVERSITY HEALTH SERVICE,38043919,9092.11,S3 7QP
Department of Health,NHS Sheffield CCG,30/09/2021,C&M-PMS PCN DES Clinical Director,PRC DELEGATED CO-COMMISSIONING,UNIVERSITY HEALTH SERVICE,38043919,2492.34,S3 7QP
Department of Health,NHS Sheffield CCG,30/09/2021,C&M-PMS PCN DES PCN support,PRC DELEGATED CO-COMMISSIONING,UNIVERSITY HEALTH SERVICE,38043919,5079.5,S3 7QP
Department of Health,NHS Sheffield CCG,30/09/2021,C&M-PMS PCN DES Participation,PRC DELEGATED CO-COMMISSIONING,UNIVERSITY HEALTH SERVICE,38043919,3676.64,S3 7QP
Department of Health,NHS Sheffield CCG,30/09/2021,C&M-PMS PCN DES Physiotherapist,PRC DELEGATED CO-COMMISSIONING,UNIVERSITY HEALTH SERVICE,38043919,3053.47,S3 7QP
Department of Health,NHS Sheffield CCG,30/09/2021,C&M-PMS PCN DES Soc Prescribing,PRC DELEGATED CO-COMMISSIONING,UNIVERSITY HEALTH SERVICE,38043919,2791.02,S3 7QP
Department of Health,NHS Sheffield CCG,30/09/2021,C&M-PMS PCO Locum Sickness,PRC DELEGATED CO-COMMISSIONING,UNIVERSITY HEALTH SERVICE,38043919,1996.48,S3 7QP
Department of Health,NHS Sheffield CCG,30/09/2021,C&M-PMS Prem Notional Rent,PRC DELEGATED CO-COMMISSIONING,UNIVERSITY HEALTH SERVICE,38043919,15833.33,S3 7QP
Department of Health,NHS Sheffield CCG,30/09/2021,C&M-PMS QOF Aspiration,PRC DELEGATED CO-COMMISSIONING,UNIVERSITY HEALTH SERVICE,38043919,8086.27,S3 7QP
Department of Health,NHS Sheffield CCG,30/09/2021,C&M-PMS Contract Value,PRC DELEGATED CO-COMMISSIONING,UPWELL STREET SURGERY,38043920,39254.2,S4 8AN
Department of Health,NHS Sheffield CCG,30/09/2021,C&M-PMS Funding Differential Review,PRC DELEGATED CO-COMMISSIONING,UPWELL STREET SURGERY,38043920,911.19,S4 8AN
Department of Health,NHS Sheffield CCG,30/09/2021,C&M-PMS PCN DES Participation,PRC DELEGATED CO-COMMISSIONING,UPWELL STREET SURGERY,38043920,680.46,S4 8AN
Department of Health,NHS Sheffield CCG,30/09/2021,C&M-PMS PCO Other,PRC DELEGATED CO-COMMISSIONING,UPWELL STREET SURGERY,38043920,315.4,S4 8AN
Department of Health,NHS Sheffield CCG,30/09/2021,C&M-PMS Prem Notional Rent,PRC DELEGATED CO-COMMISSIONING,UPWELL STREET SURGERY,38043920,8137.5,S4 8AN
Department of Health,NHS Sheffield CCG,30/09/2021,C&M-PMS Prem Rates,PRC DELEGATED CO-COMMISSIONING,UPWELL STREET SURGERY,38043920,998,S4 8AN
Department of Health,NHS Sheffield CCG,30/09/2021,C&M-PMS Prem Water Rates,PRC DELEGATED CO-COMMISSIONING,UPWELL STREET SURGERY,38043920,142.08,S4 8AN
Department of Health,NHS Sheffield CCG,30/09/2021,C&M-PMS QOF Aspiration,PRC DELEGATED CO-COMMISSIONING,UPWELL STREET SURGERY,38043920,4098.59,S4 8AN
Department of Health,NHS Sheffield CCG,30/09/2021,C&M-PMS Contract Value,PRC DELEGATED CO-COMMISSIONING,VALLEY MEDICAL CENTRE,38043922,85587.55,S36 1BX
Department of Health,NHS Sheffield CCG,30/09/2021,C&M-PMS DES Extended Hours Access,PRC DELEGATED CO-COMMISSIONING,VALLEY MEDICAL CENTRE,38043922,2477.4,S36 1BX
Department of Health,NHS Sheffield CCG,30/09/2021,C&M-PMS DES Learn Dsblty Hlth Chk,PRC DELEGATED CO-COMMISSIONING,VALLEY MEDICAL CENTRE,38043922,980,S36 1BX
Department of Health,NHS Sheffield CCG,30/09/2021,C&M-PMS Out of Hours Opt Outs,PRC DELEGATED CO-COMMISSIONING,VALLEY MEDICAL CENTRE,38043922,11.49,S36 1BX
Department of Health,NHS Sheffield CCG,30/09/2021,C&M-PMS PCN DES Clin Pharmacist,PRC DELEGATED CO-COMMISSIONING,VALLEY MEDICAL CENTRE,38043922,8169.14,S36 1BX
Department of Health,NHS Sheffield CCG,30/09/2021,C&M-PMS PCN DES Clinical Director,PRC DELEGATED CO-COMMISSIONING,VALLEY MEDICAL CENTRE,38043922,2525.58,S36 1BX
Department of Health,NHS Sheffield CCG,30/09/2021,C&M-PMS PCN DES PCN support,PRC DELEGATED CO-COMMISSIONING,VALLEY MEDICAL CENTRE,38043922,2580.63,S36 1BX
Department of Health,NHS Sheffield CCG,30/09/2021,C&M-PMS PCN DES Participation,PRC DELEGATED CO-COMMISSIONING,VALLEY MEDICAL CENTRE,38043922,1524.87,S36 1BX
Department of Health,NHS Sheffield CCG,30/09/2021,C&M-PMS PCN DES Physiotherapist,PRC DELEGATED CO-COMMISSIONING,VALLEY MEDICAL CENTRE,38043922,2073.61,S36 1BX
Department of Health,NHS Sheffield CCG,30/09/2021,C&M-PMS PCN DES Soc Prescribing,PRC DELEGATED CO-COMMISSIONING,VALLEY MEDICAL CENTRE,38043922,2633.5,S36 1BX
Department of Health,NHS Sheffield CCG,30/09/2021,C&M-PMS Prem Actual Rent,PRC DELEGATED CO-COMMISSIONING,VALLEY MEDICAL CENTRE,38043922,25468.75,S36 1BX
Department of Health,NHS Sheffield CCG,30/09/2021,C&M-PMS Prem Rates,PRC DELEGATED CO-COMMISSIONING,VALLEY MEDICAL CENTRE,38043922,657,S36 1BX
Department of Health,NHS Sheffield CCG,30/09/2021,C&M-PMS QOF Aspiration,PRC DELEGATED CO-COMMISSIONING,VALLEY MEDICAL CENTRE,38043922,9844.79,S36 1BX
Department of Health,NHS Sheffield CCG,30/09/2021,C&M-PMS Contract Value,PRC DELEGATED CO-COMMISSIONING,WOODSEATS MEDICAL CENTRE,38044134,87640.17,S8 0SH
Department of Health,NHS Sheffield CCG,30/09/2021,C&M-PMS PCN DES Participation,PRC DELEGATED CO-COMMISSIONING,WOODSEATS MEDICAL CENTRE,38044134,1531.95,S8 0SH
Department of Health,NHS Sheffield CCG,30/09/2021,C&M-PMS PCO Locum Adop/Pat/Mat,PRC DELEGATED CO-COMMISSIONING,WOODSEATS MEDICAL CENTRE,38044134,6906.96,S8 0SH
Department of Health,NHS Sheffield CCG,30/09/2021,C&M-PMS PCO Other,PRC DELEGATED CO-COMMISSIONING,WOODSEATS MEDICAL CENTRE,38044134,654.9,S8 0SH
Department of Health,NHS Sheffield CCG,30/09/2021,C&M-PMS Prem Notional Rent,PRC DELEGATED CO-COMMISSIONING,WOODSEATS MEDICAL CENTRE,38044134,11666.67,S8 0SH
Department of Health,NHS Sheffield CCG,30/09/2021,C&M-PMS Prem Rates,PRC DELEGATED CO-COMMISSIONING,WOODSEATS MEDICAL CENTRE,38044134,2611,S8 0SH
Department of Health,NHS Sheffield CCG,30/09/2021,C&M-PMS Prem Water Rates,PRC DELEGATED CO-COMMISSIONING,WOODSEATS MEDICAL CENTRE,38044134,257.6,S8 0SH
Department of Health,NHS Sheffield CCG,30/09/2021,C&M-PMS QOF Aspiration,PRC DELEGATED CO-COMMISSIONING,WOODSEATS MEDICAL CENTRE,38044134,10388.66,S8 0SH
Department of Health,NHS Sheffield CCG,30/09/2021,Clinical&Medical-Independent Sector,MENTAL HEALTH CONTRACTS,SOUTH YORKSHIRE HOUSING ASSOCIATION LTD,38046748,91823.04,S1 4EB
Department of Health,NHS Sheffield CCG,30/09/2021,Cont Care-Physical Disab (<65),CHC ADULT FULLY FUNDED,JUVENTA 4 CARE LTD,38047338,38298.24,S2 1AS
Department of Health,NHS Sheffield CCG,30/09/2021,C&M-PMS Contract Value,PRC DELEGATED CO-COMMISSIONING,MANOR & PARK GROUP PRACTICE,38059932,73942.53,S2 5QQ
Department of Health,NHS Sheffield CCG,30/09/2021,C&M-PMS Out of Hours Opt Outs,PRC DELEGATED CO-COMMISSIONING,MANOR & PARK GROUP PRACTICE,38059932,52.32,S2 5QQ
Department of Health,NHS Sheffield CCG,30/09/2021,C&M-PMS PCN DES Participation,PRC DELEGATED CO-COMMISSIONING,MANOR & PARK GROUP PRACTICE,38059932,1333.57,S2 5QQ
Department of Health,NHS Sheffield CCG,30/09/2021,C&M-PMS Prem Notional Rent,PRC DELEGATED CO-COMMISSIONING,MANOR & PARK GROUP PRACTICE,38059932,9112.5,S2 5QQ
Department of Health,NHS Sheffield CCG,30/09/2021,C&M-PMS QOF Aspiration,PRC DELEGATED CO-COMMISSIONING,MANOR & PARK GROUP PRACTICE,38059932,6833.28,S2 5QQ
Department of Health,NHS Sheffield CCG,30/09/2021,C&M-PMS Contract Value,PRC DELEGATED CO-COMMISSIONING,FORGE HEALTH GROUP,38064546,131430.61,S3 9DL
Department of Health,NHS Sheffield CCG,30/09/2021,C&M-PMS DES Extended Hours Access,PRC DELEGATED CO-COMMISSIONING,FORGE HEALTH GROUP,38064546,6820.92,S3 9DL
Department of Health,NHS Sheffield CCG,30/09/2021,C&M-PMS PCN DES Clinical Director,PRC DELEGATED CO-COMMISSIONING,FORGE HEALTH GROUP,38064546,6953.55,S3 9DL
Department of Health,NHS Sheffield CCG,30/09/2021,C&M-PMS PCN DES PCN support,PRC DELEGATED CO-COMMISSIONING,FORGE HEALTH GROUP,38064546,7105.13,S3 9DL
Department of Health,NHS Sheffield CCG,30/09/2021,C&M-PMS PCN DES Participation,PRC DELEGATED CO-COMMISSIONING,FORGE HEALTH GROUP,38064546,2294.59,S3 9DL
Department of Health,NHS Sheffield CCG,30/09/2021,C&M-PMS PCO Locum Adop/Pat/Mat,PRC DELEGATED CO-COMMISSIONING,FORGE HEALTH GROUP,38064546,14308.41,S3 9DL
Department of Health,NHS Sheffield CCG,30/09/2021,C&M-PMS PCO Locum Sickness,PRC DELEGATED CO-COMMISSIONING,FORGE HEALTH GROUP,38064546,50269.24,S3 9DL
Department of Health,NHS Sheffield CCG,30/09/2021,C&M-PMS Prem Healthcentre Rent,PRC DELEGATED CO-COMMISSIONING,FORGE HEALTH GROUP,38064546,76933.45,S3 9DL
Department of Health,NHS Sheffield CCG,30/09/2021,C&M-PMS Prem Notional Rent,PRC DELEGATED CO-COMMISSIONING,FORGE HEALTH GROUP,38064546,9891.67,S3 9DL
Department of Health,NHS Sheffield CCG,30/09/2021,C&M-PMS QOF Aspiration,PRC DELEGATED CO-COMMISSIONING,FORGE HEALTH GROUP,38064546,13652.49,S3 9DL
Department of Health,NHS Sheffield CCG,30/09/2021,C&M-PMS Contract Value,PRC DELEGATED CO-COMMISSIONING,HEALTH CARE SURGERY,38064548,65408.63,S5 8GS
Department of Health,NHS Sheffield CCG,30/09/2021,C&M-PMS DES Learn Dsblty Hlth Chk,PRC DELEGATED CO-COMMISSIONING,HEALTH CARE SURGERY,38064548,280,S5 8GS
Department of Health,NHS Sheffield CCG,30/09/2021,C&M-PMS Funding Differential Review,PRC DELEGATED CO-COMMISSIONING,HEALTH CARE SURGERY,38064548,506.77,S5 8GS
Department of Health,NHS Sheffield CCG,30/09/2021,C&M-PMS PCN DES Participation,PRC DELEGATED CO-COMMISSIONING,HEALTH CARE SURGERY,38064548,798.5,S5 8GS
Department of Health,NHS Sheffield CCG,30/09/2021,C&M-PMS PCO Locum Adop/Pat/Mat,PRC DELEGATED CO-COMMISSIONING,HEALTH CARE SURGERY,38064548,23425.47,S5 8GS
Department of Health,NHS Sheffield CCG,30/09/2021,C&M-PMS PCO Other,PRC DELEGATED CO-COMMISSIONING,HEALTH CARE SURGERY,38064548,3283.8,S5 8GS
Department of Health,NHS Sheffield CCG,30/09/2021,C&M-PMS Prem Notional Rent,PRC DELEGATED CO-COMMISSIONING,HEALTH CARE SURGERY,38064548,5558.33,S5 8GS
Department of Health,NHS Sheffield CCG,30/09/2021,C&M-PMS QOF Aspiration,PRC DELEGATED CO-COMMISSIONING,HEALTH CARE SURGERY,38064548,7038.33,S5 8GS
Department of Health,NHS Sheffield CCG,30/09/2021,C&M-PMS Contract Value,PRC DELEGATED CO-COMMISSIONING,UNIVERSITY HEALTH SERVICE,38064549,-41034.86,S3 7QP
Department of Health,NHS Sheffield CCG,30/09/2021,C&M-PMS GP Statutory Levy,PRC DELEGATED CO-COMMISSIONING,UNIVERSITY HEALTH SERVICE,38064549,-1272.99,S3 7QP
Department of Health,NHS Sheffield CCG,30/09/2021,C&M-PMS Out of Hours Opt Outs,PRC DELEGATED CO-COMMISSIONING,UNIVERSITY HEALTH SERVICE,38064549,-9566.75,S3 7QP
Department of Health,NHS Sheffield CCG,30/09/2021,Participation Fees,BEREAVEMENT SERVICE,ROTHERHAM DONCASTER AND SOUTH HUMBER NHS FOUNDATION TRUST,38071674,90861,DN4 8QN
Department of Health,NHS Sheffield CCG,30/09/2021,Cont Care-Physical Disab (65+),CHC ADULT FULLY FUNDED,BC SHEFFIELD LTD,38071676,41404.23,S9 2TJ
Department of Health,NHS Sheffield CCG,30/09/2021,Clinical&Medical-Voluntary Sector,MENTAL HEALTH SERVICES - COLLABORATIVE COMMISSIONING,SHEFFIELD MIND,38071697,26481.85,S11 8AL
Department of Health,NHS Sheffield CCG,30/09/2021,Charges from CSU,BUSINESS INFORMATICS,NHS NORTH OF ENGLAND CSU,38071724,26554.67,WF3 1WE
Department of Health,NHS Sheffield CCG,30/09/2021,Participation Fees,BEREAVEMENT SERVICE,SHEFFIELD CHILDRENS NHS FOUNDATION TRUST,38071727,1304422,S10 2TH
Department of Health,NHS Sheffield CCG,30/09/2021,Clinical&Medical-Independent Sector,MENTAL HEALTH CONTRACTS,SOUTH YORKSHIRE HOUSING ASSOCIATION LTD,38071733,137734.56,S1 4EB
Department of Health,NHS Sheffield CCG,30/09/2021,C&M-APMS DES Immediate&1st Response,LOCAL ENHANCED SERVICES,PRIMARY CARE SHEFFIELD LTD,38071798,37762.99,S12 3GH
Department of Health,NHS Sheffield CCG,30/09/2021,Participation Fees,CLINICAL LEADS,ROTHERHAM NHS FOUNDATION TRUST,38071804,396667,S60 2UD
Department of Health,NHS Sheffield CCG,30/09/2021,C&M-GMS IT Comm Servs -GP Practices,PRIMARY CARE IT,ACCURX LTD,38091666,38558.84,N1 5AA
Department of Health,NHS Sheffield CCG,30/09/2021,Participation Fees,BEREAVEMENT SERVICE,SHEFFIELD TEACHING HOSPITALS NHS FOUNDATION TRUST,38091729,27980,S5 7AU
Department of Health,NHS Sheffield CCG,30/09/2021,Clinical&Medical-Othe Public Sector,COMMUNITY SERVICES,SHEFFIELD CITY COUNCIL,38091735,150416.7,S1 1UJ
Department of Health,NHS Sheffield CCG,30/09/2021,Clinical&Medical-Othe Public Sector,MENTAL HEALTH SERVICES - COLLABORATIVE COMMISSIONING,SHEFFIELD CITY COUNCIL,38091735,83669.09,S1 1UJ
Department of Health,NHS Sheffield CCG,30/09/2021,Clinical&Medical-Othe Public Sector,REABLEMENT,SHEFFIELD CITY COUNCIL,38091735,21808.67,S1 1UJ
Department of Health,NHS Sheffield CCG,30/09/2021,Clinical&Medical-Othe Public Sector,SAFEGUARDING,SHEFFIELD CITY COUNCIL,38091735,16596.33,S1 1UJ
Department of Health,NHS Sheffield CCG,30/09/2021,Cont Care-Physical Disab (65+),CHC ADULT FULLY FUNDED,SHEFFIELD CITY COUNCIL,38091735,62941.09,S1 1UJ
Department of Health,NHS Sheffield CCG,30/09/2021,Soc Care-Joint H&C Teams/Working,INTERMEDIATE CARE,SHEFFIELD CITY COUNCIL,38091735,151447.58,S1 1UJ
Department of Health,NHS Sheffield CCG,30/09/2021,Soc Care-Other Soc Care,COMMISSIONING - NON ACUTE,SHEFFIELD CITY COUNCIL,38091735,1635250,S1 1UJ
Department of Health,NHS Sheffield CCG,30/09/2021,Soc Care-Support Prim Care,COMMUNITY SERVICES,SHEFFIELD CITY COUNCIL,38091735,64166.67,S1 1UJ
Department of Health,NHS Sheffield CCG,30/09/2021,Hcare Srv Rec Fdtn Trust-Contract Baseline,ACUTE CHILDRENS SERVICES,SHEFFIELD CHILDRENS NHS FOUNDATION TRUST,38094851,2279500,S10 2TH
Department of Health,NHS Sheffield CCG,30/09/2021,Hcare Srv Rec Fdtn Trust-Contract Baseline,MENTAL HEALTH CONTRACTS,SHEFFIELD HEALTH & SOCIAL CARE NHS FOUNDATION TRUST,38094852,908500,S10 3TH
Department of Health,NHS Sheffield CCG,30/09/2021,Hcare Srv Rec Fdtn Trust-Contract Baseline,ACUTE COMMISSIONING,SHEFFIELD TEACHING HOSPITALS NHS FOUNDATION TRUST,38094854,7149333.33,S5 7AU
Department of Health,NHS Sheffield CCG,30/09/2021,Clinical&Medical-Serv Recd-F Trsts,BEREAVEMENT SERVICE,HUMBER TEACHING NHS FOUNDATION TRUST,38094855,50920.34,WF3 1WE
Department of Health,NHS Sheffield CCG,30/09/2021,Hcare Srv Rec Fdtn Trust-Contract Baseline,ACUTE COMMISSIONING,BARNSLEY HOSPITAL NHS FOUNDATION TRUST,38094857,131671.79,S75 2EP
Department of Health,NHS Sheffield CCG,30/09/2021,Hcare Srv Rec Fdtn Trust-Contract Baseline,ACUTE COMMISSIONING,CHESTERFIELD ROYAL HOSPITAL NHS FOUNDATION TRUST,38094859,371022.89,S44 5BL
Department of Health,NHS Sheffield CCG,30/09/2021,Hcare Srv Rec Fdtn Trust-Contract Baseline,ACUTE COMMISSIONING,DONCASTER AND BASSETLAW HOSPITALS NHS FOUNDATION TRUST,38094860,80128.09,WF3 1WE
Department of Health,NHS Sheffield CCG,30/09/2021,Hcare Srv Rec NHS Trust-Contract Baseline,ACUTE COMMISSIONING,LEEDS TEACHING HOSPITALS NHS TRUST,38094862,48099.81,LS9 7TF
Department of Health,NHS Sheffield CCG,30/09/2021,Hcare Srv Rec Fdtn Trust-Contract Baseline,AMBULANCE SERVICES,YORKSHIRE AMBULANCE SERVICE NHS TRUST,38094864,2437523.85,WF2 0XQ
Department of Health,NHS Sheffield CCG,30/09/2021,Hcare Srv Rec Fdtn Trust-Contract Baseline,ACUTE CHILDRENS SERVICES,SHEFFIELD CHILDRENS NHS FOUNDATION TRUST,38094866,3731046.58,S10 2TH
Department of Health,NHS Sheffield CCG,30/09/2021,Hcare Srv Rec Fdtn Trust-Contract Baseline,MENTAL HEALTH CONTRACTS,SHEFFIELD HEALTH & SOCIAL CARE NHS FOUNDATION TRUST,38094868,8171496.52,S10 3TH
Department of Health,NHS Sheffield CCG,30/09/2021,Hcare Srv Rec Fdtn Trust-Contract Baseline,ACUTE COMMISSIONING,SHEFFIELD TEACHING HOSPITALS NHS FOUNDATION TRUST,38094870,37776143.78,S5 7AU
Department of Health,NHS Sheffield CCG,30/09/2021,Hcare Srv Rec Fdtn Trust-Contract Baseline,ACUTE COMMISSIONING,ROTHERHAM NHS FOUNDATION TRUST,38094872,622083.23,S60 2TY
Department of Health,NHS Sheffield CCG,30/09/2021,Participation Fees,BEREAVEMENT SERVICE,DONCASTER AND BASSETLAW HOSPITALS NHS FOUNDATION TRUST,38124087,1452363,WF3 1WE
Department of Health,NHS Sheffield CCG,30/09/2021,Participation Fees,BEREAVEMENT SERVICE,BARNSLEY HOSPITAL NHS FOUNDATION TRUST,38124155,839889,S75 2EP
Department of Health,NHS Sheffield CCG,30/09/2021,Participation Fees,BEREAVEMENT SERVICE,ROTHERHAM NHS FOUNDATION TRUST,38124191,1358837,S60 2UD
Department of Health,NHS Sheffield CCG,30/09/2021,Recharge : Received,PATIENT TRANSPORT,NHS DONCASTER CCG,38124208,218466.14,WF3 1WE
Department of Health,NHS Sheffield CCG,30/09/2021,Participation Fees,BEREAVEMENT SERVICE,SHEFFIELD TEACHING HOSPITALS NHS FOUNDATION TRUST,38124861,5499829,S5 7AU
Department of Health,NHS Sheffield CCG,30/09/2021,Cont Care-Physical Disab (65+),CHC ADULT FULLY FUNDED,SHEFFIELD CITY COUNCIL,38150786,849816.37,S1 1UJ
Department of Health,NHS Sheffield CCG,30/09/2021,Cont Care- Children,CHC CHILDREN,SHEFFIELD CITY COUNCIL,38150795,193377.16,S1 1UJ
Department of Health,NHS Sheffield CCG,30/09/2021,Cont Care-Funded Nursing Care Allow,FUNDED NURSING CARE,COUNTRY COURT CARE LTD,38150804,25835.2,S5 6UU
Department of Health,NHS Sheffield CCG,30/09/2021,Cont Care-Funded Nursing Care Allow,FUNDED NURSING CARE,ROSEBERRY CARE CENTRES,38150908,36810.92,S5 6AB
Department of Health,NHS Sheffield CCG,30/09/2021,Cont Care-Funded Nursing Care Allow,FUNDED NURSING CARE,BONDCARE,38150943,30820,NW4 4EF
Department of Health,NHS Sheffield CCG,30/09/2021,Cont Care- Adult 100% Fully Funded,CHC ADULT FULLY FUNDED,SOUTH YORKSHIRE HOUSING ASSOCIATION LTD,38150993,25500,S1 4HF
Department of Health,NHS Sheffield CCG,30/09/2021,Cont Care- Adult 100% Fully Funded,CHC ADULT FULLY FUNDED,SOUTH YORKSHIRE HOUSING ASSOCIATION LTD,38150999,46763.59,S1 4HF
Department of Health,NHS Sheffield CCG,30/09/2021,Clinical&Medical-Independent Sector,MENTAL HEALTH CONTRACTS,SUSASH GB LTD T/A EAGLE HOUSE,38151003,30091.75,S11 8NP
Department of Health,NHS Sheffield CCG,30/09/2021,Clinical&Medical-Independent Sector,MENTAL HEALTH CONTRACTS,SOUTH YORKSHIRE HOUSING ASSOCIATION LTD,38151010,34434.83,S1 4HF
Department of Health,NHS Sheffield CCG,30/09/2021,Cont Care-Physical Disab (<65),CHC ADULT FULLY FUNDED,COUNTRY COURT CARE LTD,38164676,36475.21,S5 6UU
Department of Health,NHS Sheffield CCG,30/09/2021,Cont Care-Physical Disab (<65),CHC ADULT FULLY FUNDED,COUNTRY COURT CARE LTD,38164684,40936.22,PE6 8HD
Department of Health,NHS Sheffield CCG,30/09/2021,Cont Care-Physical Disab (<65),CHC ADULT FULLY FUNDED,SOUTH YORKSHIRE HOUSING ASSOCIATION LTD,38164686,63414.56,S35 1RQ
Department of Health,NHS Sheffield CCG,30/09/2021,Cont Care-Physical Disab (<65),CHC ADULT FULLY FUNDED,FAIRWINDS HEALTH CARE LTD,38164690,39752.78,S61 1AJ
Department of Health,NHS Sheffield CCG,30/09/2021,Cont Care-Physical Disab (<65),CHC ADULT FULLY FUNDED,LONGLEY HEALTH CARE LTD,38164697,128668.56,S5 7JZ
Department of Health,NHS Sheffield CCG,30/09/2021,Cont Care-Physical Disab (<65),CHC ADULT FULLY FUNDED,SCARSDALE GRANGE NURSING HOME,38164710,89122.88,S8 9EQ
Department of Health,NHS Sheffield CCG,30/09/2021,Cont Care-Physical Disab (<65),CHC ADULT FULLY FUNDED,SEVEN HILLS NURSING HOME,38164712,44601.92,S11 9AA
Department of Health,NHS Sheffield CCG,30/09/2021,Cont Care-Physical Disab (<65),CHC ADULT FULLY FUNDED,WILLOWBECK HEALTH CARE LTD,38164721,153008.88,S4 8AR
Department of Health,NHS Sheffield CCG,30/09/2021,Cont Care-Physical Disab (<65),CHC ADULT FULLY FUNDED,HORIZON CARE HOMES LTD,38164725,27148.1,S25 3QA
Department of Health,NHS Sheffield CCG,30/09/2021,Cont Care-Physical Disab (<65),CHC ADULT FULLY FUNDED,ROSEBERRY CARE CENTRES,38164727,49733.79,S35 2XF
Department of Health,NHS Sheffield CCG,30/09/2021,Cont Care-Physical Disab (<65),CHC ADULT FULLY FUNDED,ROSEBERRY CARE CENTRES,38164729,54316.16,S5 6AB
Department of Health,NHS Sheffield CCG,30/09/2021,Cont Care-Physical Disab (<65),CHC ADULT FULLY FUNDED,BONDCARE,38164746,29675.68,NW4 4EF
Department of Health,NHS Sheffield CCG,30/09/2021,Cont Care-Physical Disab (<65),CHC ADULT FULLY FUNDED,HORIZON CARE HOMES LTD,38164750,45060.99,S25 3QA
Department of Health,NHS Sheffield CCG,30/09/2021,Cont Care-Physical Disab (<65),CHC ADULT FULLY FUNDED,SUSASH GB LTD T/A EAGLE HOUSE,38164752,27853.98,S11 8NP
Department of Health,NHS Sheffield CCG,30/09/2021,Cont Care-Physical Disab (<65),CHC ADULT FULLY FUNDED,HORIZON CARE HOMES LTD,38164754,103069.33,S25 3QA
Department of Health,NHS Sheffield CCG,30/09/2021,Cont Care-Physical Disab (<65),CHC ADULT FULLY FUNDED,VALORUM CARE LTD,38164756,26817.69,LS19 7RW
Department of Health,NHS Sheffield CCG,30/09/2021,Cont Care-Physical Disab (<65),CHC ADULT FULLY FUNDED,INLET LTD,38164760,67642.73,S48NB
Department of Health,NHS Sheffield CCG,30/09/2021,Clinical&Medical-Voluntary Sector,MENTAL HEALTH SERVICES - COLLABORATIVE COMMISSIONING,SHEFFIELD MIND,38183159,26528.83,S11 8AL
Department of Health,NHS Sheffield CCG,30/09/2021,Cont Care-Physical Disab (<65),CHC ADULT FULLY FUNDED,INLET LTD,38196540,70378.79,S48NB
Department of Health,NHS Sheffield CCG,30/09/2021,Cont Care-Physical Disab (<65),CHC ADULT FULLY FUNDED,VALORUM CARE LTD,38196542,45778.85,LS19 7RW
Department of Health,NHS Sheffield CCG,30/09/2021,Cont Care-Physical Disab (<65),CHC ADULT FULLY FUNDED,INLET LTD,38196546,73499.46,S48NB
Department of Health,NHS Sheffield CCG,30/09/2021,Cont Care-Physical Disab (<65),CHC ADULT FULLY FUNDED,VALORUM CARE LTD,38196548,39939.38,LS19 7RW
Department of Health,NHS Sheffield CCG,30/09/2021,Clinical&Medical-Devolved Admin'n,NCAS/OATS,NHS GREATER GLASGOW AND CLYDE,38199534,39392,G51 4ED
Department of Health,NHS Sheffield CCG,30/09/2021,Participation Fees,BEREAVEMENT SERVICE,ROTHERHAM DONCASTER AND SOUTH HUMBER NHS FOUNDATION TRUST,38225011,150000,DN4 8QN
Department of Health,NHS Sheffield CCG,30/09/2021,Clinical&Medical-Independent Sector,Mental Health Services - S117 Mental Health,MOORVILLE RESIDENTIAL,38225014,35374.8,S10 5FA
Department of Health,NHS Sheffield CCG,30/09/2021,Cont Care-Learning Disab(<65),CHC ADULT FULLY FUNDED,MOORVILLE RESIDENTIAL,38225014,8875.8,S10 5FA
Department of Health,NHS Sheffield CCG,30/09/2021,Cont Care-Learning Disab(<65),CHC ADULT JOINT FUNDED,MOORVILLE RESIDENTIAL,38225014,4193.4,S10 5FA
Department of Health,NHS Sheffield CCG,30/09/2021,Cont Care-Mental Health (<65),CHC ADULT JOINT FUNDED,MOORVILLE RESIDENTIAL,38225014,489.9,S10 5FA
Department of Health,NHS Sheffield CCG,30/09/2021,Participation Fees,BEREAVEMENT SERVICE,ROTHERHAM DONCASTER AND SOUTH HUMBER NHS FOUNDATION TRUST,38225021,240440,DN4 8QN
Department of Health,NHS Sheffield CCG,30/09/2021,Participation Fees,BEREAVEMENT SERVICE,ROTHERHAM DONCASTER AND SOUTH HUMBER NHS FOUNDATION TRUST,38225059,-240440,DN4 8QN
Department of Health,NHS Sheffield CCG,30/09/2021,CLINICAL AND MEDICAL GOODS & SERVICES - HOSPITAL DISCHARGE PROGRAMME,COMMUNITY SERVICES,SHEFFIELD CITY COUNCIL,38225061,1501444,S1 2HH
Department of Health,NHS Sheffield CCG,30/09/2021,Clinical&Medical-Independent Sector,ACUTE COMMISSIONING,SPAMEDICA LTD,38225076,69134.84,BL1 1HU
Department of Health,NHS Sheffield CCG,30/09/2021,Recharge : Received,CONTINUING HEALTHCARE ASSESSMENT & SUPPORT,NHS DONCASTER CCG,38225078,97634,WF3 1WE
Department of Health,NHS Sheffield CCG,30/09/2021,Hcare Srv Rec Fdtn Trust-Contract Baseline,MENTAL HEALTH CONTRACTS,SHEFFIELD HEALTH & SOCIAL CARE NHS FOUNDATION TRUST,38232289,908500,S10 3TH
Department of Health,NHS Sheffield CCG,30/09/2021,C&M-GMS DES Learn Dsblty Hlth Chk,PRC DELEGATED CO-COMMISSIONING,WALKLEY HOUSE MEDICAL CENTRE,38245604,140,S6 3TN
Department of Health,NHS Sheffield CCG,30/09/2021,C&M-GMS Global Sum,PRC DELEGATED CO-COMMISSIONING,WALKLEY HOUSE MEDICAL CENTRE,38245604,94408.3,S6 3TN
Department of Health,NHS Sheffield CCG,30/09/2021,C&M-GMS PCN DES Participation,PRC DELEGATED CO-COMMISSIONING,WALKLEY HOUSE MEDICAL CENTRE,38245604,1785.69,S6 3TN
Department of Health,NHS Sheffield CCG,30/09/2021,C&M-GMS Prem Notional Rent,PRC DELEGATED CO-COMMISSIONING,WALKLEY HOUSE MEDICAL CENTRE,38245604,5806.96,S6 3TN
Department of Health,NHS Sheffield CCG,30/09/2021,C&M-GMS Prem Rates,PRC DELEGATED CO-COMMISSIONING,WALKLEY HOUSE MEDICAL CENTRE,38245604,1297,S6 3TN
Department of Health,NHS Sheffield CCG,30/09/2021,C&M-GMS QOF Aspiration,PRC DELEGATED CO-COMMISSIONING,WALKLEY HOUSE MEDICAL CENTRE,38245604,9792.91,S6 3TN
Department of Health,NHS Sheffield CCG,30/09/2021,C&M-GMS Global Sum,PRC DELEGATED CO-COMMISSIONING,NORFOLK PARK HEALTH CENTRE,38245607,44345.95,S2 3TA
Department of Health,NHS Sheffield CCG,30/09/2021,C&M-GMS PCN DES Participation,PRC DELEGATED CO-COMMISSIONING,NORFOLK PARK HEALTH CENTRE,38245607,820.08,S2 3TA
Department of Health,NHS Sheffield CCG,30/09/2021,C&M-GMS Prem Healthcentre Rent,PRC DELEGATED CO-COMMISSIONING,NORFOLK PARK HEALTH CENTRE,38245607,55999.87,S2 3TA
Department of Health,NHS Sheffield CCG,30/09/2021,C&M-GMS QOF Aspiration,PRC DELEGATED CO-COMMISSIONING,NORFOLK PARK HEALTH CENTRE,38245607,4434.09,S2 3TA
Department of Health,NHS Sheffield CCG,30/09/2021,C&M-GMS Global Sum,PRC DELEGATED CO-COMMISSIONING,BUCHANAN ROAD SURGERY,38245612,37807.91,S5 8AL
Department of Health,NHS Sheffield CCG,30/09/2021,C&M-GMS PCN DES Participation,PRC DELEGATED CO-COMMISSIONING,BUCHANAN ROAD SURGERY,38245612,727.12,S5 8AL
Department of Health,NHS Sheffield CCG,30/09/2021,C&M-GMS Prem Notional Rent,PRC DELEGATED CO-COMMISSIONING,BUCHANAN ROAD SURGERY,38245612,2595.83,S5 8AL
Department of Health,NHS Sheffield CCG,30/09/2021,C&M-GMS QOF Aspiration,PRC DELEGATED CO-COMMISSIONING,BUCHANAN ROAD SURGERY,38245612,4716.42,S5 8AL
Department of Health,NHS Sheffield CCG,30/09/2021,C&M-GMS Global Sum,PRC DELEGATED CO-COMMISSIONING,NORWOOD MEDICAL CENTRE SHEFFIELD,38245615,69541.93,S5 7HD
Department of Health,NHS Sheffield CCG,30/09/2021,C&M-GMS PCN DES Participation,PRC DELEGATED CO-COMMISSIONING,NORWOOD MEDICAL CENTRE SHEFFIELD,38245615,1332.45,S5 7HD
Department of Health,NHS Sheffield CCG,30/09/2021,C&M-GMS PCO Other,PRC DELEGATED CO-COMMISSIONING,NORWOOD MEDICAL CENTRE SHEFFIELD,38245615,515.9,S5 7HD
Department of Health,NHS Sheffield CCG,30/09/2021,C&M-GMS Prem Notional Rent,PRC DELEGATED CO-COMMISSIONING,NORWOOD MEDICAL CENTRE SHEFFIELD,38245615,5187.5,S5 7HD
Department of Health,NHS Sheffield CCG,30/09/2021,C&M-GMS QOF Aspiration,PRC DELEGATED CO-COMMISSIONING,NORWOOD MEDICAL CENTRE SHEFFIELD,38245615,8469.31,S5 7HD
Department of Health,NHS Sheffield CCG,30/09/2021,C&M-GMS Global Sum,PRC DELEGATED CO-COMMISSIONING,CARTERKNOWLE & DORE MEDICAL PRACTICE,38245619,94548.6,S7 2DW
Department of Health,NHS Sheffield CCG,30/09/2021,C&M-GMS PCN DES Participation,PRC DELEGATED CO-COMMISSIONING,CARTERKNOWLE & DORE MEDICAL PRACTICE,38245619,1765.5,S7 2DW
Department of Health,NHS Sheffield CCG,30/09/2021,C&M-GMS PCO Other,PRC DELEGATED CO-COMMISSIONING,CARTERKNOWLE & DORE MEDICAL PRACTICE,38245619,773.4,S7 2DW
Department of Health,NHS Sheffield CCG,30/09/2021,C&M-GMS Prem Notional Rent,PRC DELEGATED CO-COMMISSIONING,CARTERKNOWLE & DORE MEDICAL PRACTICE,38245619,7855,S7 2DW
Department of Health,NHS Sheffield CCG,30/09/2021,C&M-GMS QOF Aspiration,PRC DELEGATED CO-COMMISSIONING,CARTERKNOWLE & DORE MEDICAL PRACTICE,38245619,11516.91,S7 2DW
Department of Health,NHS Sheffield CCG,30/09/2021,C&M-GMS Global Sum,PRC DELEGATED CO-COMMISSIONING,TRAMWAYS MEDICAL CENTRE,38245622,66016.44,S6 4JQ
Department of Health,NHS Sheffield CCG,30/09/2021,C&M-GMS PCN DES Participation,PRC DELEGATED CO-COMMISSIONING,TRAMWAYS MEDICAL CENTRE,38245622,1255.37,S6 4JQ
Department of Health,NHS Sheffield CCG,30/09/2021,C&M-GMS PCO Other,PRC DELEGATED CO-COMMISSIONING,TRAMWAYS MEDICAL CENTRE,38245622,527.2,S6 4JQ
Department of Health,NHS Sheffield CCG,30/09/2021,C&M-GMS Prem Cost Rent,PRC DELEGATED CO-COMMISSIONING,TRAMWAYS MEDICAL CENTRE,38245622,4012.75,S6 4JQ
Department of Health,NHS Sheffield CCG,30/09/2021,C&M-GMS Prem Rates,PRC DELEGATED CO-COMMISSIONING,TRAMWAYS MEDICAL CENTRE,38245622,823,S6 4JQ
Department of Health,NHS Sheffield CCG,30/09/2021,C&M-GMS QOF Aspiration,PRC DELEGATED CO-COMMISSIONING,TRAMWAYS MEDICAL CENTRE,38245622,6868.53,S6 4JQ
Department of Health,NHS Sheffield CCG,30/09/2021,C&M-GMS DES Learn Dsblty Hlth Chk,PRC DELEGATED CO-COMMISSIONING,WHITE HOUSE SURGERY SHEFFIELD,38245626,280,S2 1SL
Department of Health,NHS Sheffield CCG,30/09/2021,C&M-GMS Global Sum,PRC DELEGATED CO-COMMISSIONING,WHITE HOUSE SURGERY SHEFFIELD,38245626,58404.92,S2 1SL
Department of Health,NHS Sheffield CCG,30/09/2021,C&M-GMS PCN DES Participation,PRC DELEGATED CO-COMMISSIONING,WHITE HOUSE SURGERY SHEFFIELD,38245626,1090.83,S2 1SL
Department of Health,NHS Sheffield CCG,30/09/2021,C&M-GMS Prem Notional Rent,PRC DELEGATED CO-COMMISSIONING,WHITE HOUSE SURGERY SHEFFIELD,38245626,9412.5,S2 1SL
Department of Health,NHS Sheffield CCG,30/09/2021,C&M-GMS Prem Rates,PRC DELEGATED CO-COMMISSIONING,WHITE HOUSE SURGERY SHEFFIELD,38245626,1632,S2 1SL
Department of Health,NHS Sheffield CCG,30/09/2021,C&M-GMS Prem Water Rates,PRC DELEGATED CO-COMMISSIONING,WHITE HOUSE SURGERY SHEFFIELD,38245626,250.91,S2 1SL
Department of Health,NHS Sheffield CCG,30/09/2021,C&M-GMS QOF Aspiration,PRC DELEGATED CO-COMMISSIONING,WHITE HOUSE SURGERY SHEFFIELD,38245626,6765.85,S2 1SL
Department of Health,NHS Sheffield CCG,30/09/2021,C&M-GMS Global Sum,PRC DELEGATED CO-COMMISSIONING,FAR LANE MEDICAL CENTRE,38245629,59327.53,S6 4FA
Department of Health,NHS Sheffield CCG,30/09/2021,C&M-GMS PCN DES Participation,PRC DELEGATED CO-COMMISSIONING,FAR LANE MEDICAL CENTRE,38245629,1139.22,S6 4FA
Department of Health,NHS Sheffield CCG,30/09/2021,C&M-GMS PCO Other,PRC DELEGATED CO-COMMISSIONING,FAR LANE MEDICAL CENTRE,38245629,458.3,S6 4FA
Department of Health,NHS Sheffield CCG,30/09/2021,C&M-GMS Prem Notional Rent,PRC DELEGATED CO-COMMISSIONING,FAR LANE MEDICAL CENTRE,38245629,3504.17,S6 4FA
Department of Health,NHS Sheffield CCG,30/09/2021,C&M-GMS Prem Rates,PRC DELEGATED CO-COMMISSIONING,FAR LANE MEDICAL CENTRE,38245629,1105,S6 4FA
Department of Health,NHS Sheffield CCG,30/09/2021,C&M-GMS QOF Aspiration,PRC DELEGATED CO-COMMISSIONING,FAR LANE MEDICAL CENTRE,38245629,6827.86,S6 4FA
Department of Health,NHS Sheffield CCG,30/09/2021,C&M-GMS Global Sum,PRC DELEGATED CO-COMMISSIONING,STONECROFT MEDICAL CENTRE,38245631,35871.88,S12 2LJ
Department of Health,NHS Sheffield CCG,30/09/2021,C&M-GMS PCN DES Participation,PRC DELEGATED CO-COMMISSIONING,STONECROFT MEDICAL CENTRE,38245631,680.92,S12 2LJ
Department of Health,NHS Sheffield CCG,30/09/2021,C&M-GMS PCO Other,PRC DELEGATED CO-COMMISSIONING,STONECROFT MEDICAL CENTRE,38245631,290.3,S12 2LJ
Department of Health,NHS Sheffield CCG,30/09/2021,C&M-GMS Prem Notional Rent,PRC DELEGATED CO-COMMISSIONING,STONECROFT MEDICAL CENTRE,38245631,2808.33,S12 2LJ
Department of Health,NHS Sheffield CCG,30/09/2021,C&M-GMS Prem Rates,PRC DELEGATED CO-COMMISSIONING,STONECROFT MEDICAL CENTRE,38245631,1235,S12 2LJ
Department of Health,NHS Sheffield CCG,30/09/2021,C&M-GMS QOF Aspiration,PRC DELEGATED CO-COMMISSIONING,STONECROFT MEDICAL CENTRE,38245631,4286.72,S12 2LJ
Department of Health,NHS Sheffield CCG,30/09/2021,C&M-GMS DES Learn Dsblty Hlth Chk,PRC DELEGATED CO-COMMISSIONING,BROOMHILL SURGERY,38245638,280,S10 5BU
Department of Health,NHS Sheffield CCG,30/09/2021,C&M-GMS Global Sum,PRC DELEGATED CO-COMMISSIONING,BROOMHILL SURGERY,38245638,68839.49,S10 5BU
Department of Health,NHS Sheffield CCG,30/09/2021,C&M-GMS PCN DES Participation,PRC DELEGATED CO-COMMISSIONING,BROOMHILL SURGERY,38245638,1322.15,S10 5BU
Department of Health,NHS Sheffield CCG,30/09/2021,C&M-GMS Prem Cost Rent,PRC DELEGATED CO-COMMISSIONING,BROOMHILL SURGERY,38245638,3309.67,S10 5BU
Department of Health,NHS Sheffield CCG,30/09/2021,C&M-GMS Prem Notional Rent,PRC DELEGATED CO-COMMISSIONING,BROOMHILL SURGERY,38245638,2612.5,S10 5BU
Department of Health,NHS Sheffield CCG,30/09/2021,C&M-GMS QOF Aspiration,PRC DELEGATED CO-COMMISSIONING,BROOMHILL SURGERY,38245638,7198.65,S10 5BU
Department of Health,NHS Sheffield CCG,30/09/2021,C&M-GMS DES Learn Dsblty Hlth Chk,PRC DELEGATED CO-COMMISSIONING,DUKE MEDICAL CENTRE,38245640,140,S2 2TD
Department of Health,NHS Sheffield CCG,30/09/2021,C&M-GMS Global Sum,PRC DELEGATED CO-COMMISSIONING,DUKE MEDICAL CENTRE,38245640,66989.88,S2 2TD
Department of Health,NHS Sheffield CCG,30/09/2021,C&M-GMS PCN DES Participation,PRC DELEGATED CO-COMMISSIONING,DUKE MEDICAL CENTRE,38245640,1180.97,S2 2TD
Department of Health,NHS Sheffield CCG,30/09/2021,C&M-GMS PCO Other,PRC DELEGATED CO-COMMISSIONING,DUKE MEDICAL CENTRE,38245640,477.6,S2 2TD
Department of Health,NHS Sheffield CCG,30/09/2021,C&M-GMS Prem Notional Rent,PRC DELEGATED CO-COMMISSIONING,DUKE MEDICAL CENTRE,38245640,5721.67,S2 2TD
Department of Health,NHS Sheffield CCG,30/09/2021,C&M-GMS QOF Aspiration,PRC DELEGATED CO-COMMISSIONING,DUKE MEDICAL CENTRE,38245640,6200.05,S2 2TD
Department of Health,NHS Sheffield CCG,30/09/2021,C&M-GMS Global Sum,PRC DELEGATED CO-COMMISSIONING,UPPERTHORPE MEDICAL CENTRE,38245643,94232.77,S6 3FT
Department of Health,NHS Sheffield CCG,30/09/2021,C&M-GMS PCN DES Participation,PRC DELEGATED CO-COMMISSIONING,UPPERTHORPE MEDICAL CENTRE,38245643,1770.85,S6 3FT
Department of Health,NHS Sheffield CCG,30/09/2021,C&M-GMS PCO Locum Adop/Pat/Mat,PRC DELEGATED CO-COMMISSIONING,UPPERTHORPE MEDICAL CENTRE,38245643,4626.84,S6 3FT
Department of Health,NHS Sheffield CCG,30/09/2021,C&M-GMS Prem Actual Rent,PRC DELEGATED CO-COMMISSIONING,UPPERTHORPE MEDICAL CENTRE,38245643,29894.5,S6 3FT
Department of Health,NHS Sheffield CCG,30/09/2021,C&M-GMS Prem Notional Rent,PRC DELEGATED CO-COMMISSIONING,UPPERTHORPE MEDICAL CENTRE,38245643,2128.33,S6 3FT
Department of Health,NHS Sheffield CCG,30/09/2021,C&M-GMS Prem Rates,PRC DELEGATED CO-COMMISSIONING,UPPERTHORPE MEDICAL CENTRE,38245643,2121,S6 3FT
Department of Health,NHS Sheffield CCG,30/09/2021,C&M-GMS Prem Water Rates,PRC DELEGATED CO-COMMISSIONING,UPPERTHORPE MEDICAL CENTRE,38245643,247.53,S6 3FT
Department of Health,NHS Sheffield CCG,30/09/2021,C&M-GMS QOF Aspiration,PRC DELEGATED CO-COMMISSIONING,UPPERTHORPE MEDICAL CENTRE,38245643,10749.32,S6 3FT
Department of Health,NHS Sheffield CCG,30/09/2021,C&M-GMS Global Sum,PRC DELEGATED CO-COMMISSIONING,CHARNOCK HEALTH PRIMARY CARE CENTRE,38245646,46327.4,S12 3GH
Department of Health,NHS Sheffield CCG,30/09/2021,C&M-GMS PCN DES Participation,PRC DELEGATED CO-COMMISSIONING,CHARNOCK HEALTH PRIMARY CARE CENTRE,38245646,884.41,S12 3GH
Department of Health,NHS Sheffield CCG,30/09/2021,C&M-GMS PCO Other,PRC DELEGATED CO-COMMISSIONING,CHARNOCK HEALTH PRIMARY CARE CENTRE,38245646,369.2,S12 3GH
Department of Health,NHS Sheffield CCG,30/09/2021,C&M-GMS Prem Notional Rent,PRC DELEGATED CO-COMMISSIONING,CHARNOCK HEALTH PRIMARY CARE CENTRE,38245646,340,S12 3GH
Department of Health,NHS Sheffield CCG,30/09/2021,C&M-GMS Prem Rates,PRC DELEGATED CO-COMMISSIONING,CHARNOCK HEALTH PRIMARY CARE CENTRE,38245646,1160,S12 3GH
Department of Health,NHS Sheffield CCG,30/09/2021,C&M-GMS QOF Aspiration,PRC DELEGATED CO-COMMISSIONING,CHARNOCK HEALTH PRIMARY CARE CENTRE,38245646,5385.73,S12 3GH
Department of Health,NHS Sheffield CCG,30/09/2021,C&M-GMS DES Learn Dsblty Hlth Chk,PRC DELEGATED CO-COMMISSIONING,HANDSWORTH MEDICAL PRACTICE SHEFFIELD,38245651,2240,S13 9BZ
Department of Health,NHS Sheffield CCG,30/09/2021,C&M-GMS Global Sum,PRC DELEGATED CO-COMMISSIONING,HANDSWORTH MEDICAL PRACTICE SHEFFIELD,38245651,84617.52,S13 9BZ
Department of Health,NHS Sheffield CCG,30/09/2021,C&M-GMS PCN DES Participation,PRC DELEGATED CO-COMMISSIONING,HANDSWORTH MEDICAL PRACTICE SHEFFIELD,38245651,1619.69,S13 9BZ
Department of Health,NHS Sheffield CCG,30/09/2021,C&M-GMS PCO Other,PRC DELEGATED CO-COMMISSIONING,HANDSWORTH MEDICAL PRACTICE SHEFFIELD,38245651,6443,S13 9BZ
Department of Health,NHS Sheffield CCG,30/09/2021,C&M-GMS Prem Notional Rent,PRC DELEGATED CO-COMMISSIONING,HANDSWORTH MEDICAL PRACTICE SHEFFIELD,38245651,3321.66,S13 9BZ
Department of Health,NHS Sheffield CCG,30/09/2021,C&M-GMS QOF Aspiration,PRC DELEGATED CO-COMMISSIONING,HANDSWORTH MEDICAL PRACTICE SHEFFIELD,38245651,8749.2,S13 9BZ
Department of Health,NHS Sheffield CCG,30/09/2021,C&M-GMS Global Sum,PRC DELEGATED CO-COMMISSIONING,BASLOW ROAD & SHOREHAM STREET SURGERIES,38245653,102251.32,S17 4DR
Department of Health,NHS Sheffield CCG,30/09/2021,C&M-GMS PCN DES Participation,PRC DELEGATED CO-COMMISSIONING,BASLOW ROAD & SHOREHAM STREET SURGERIES,38245653,1957.06,S17 4DR
Department of Health,NHS Sheffield CCG,30/09/2021,C&M-GMS PCO Other,PRC DELEGATED CO-COMMISSIONING,BASLOW ROAD & SHOREHAM STREET SURGERIES,38245653,12222,S17 4DR
Department of Health,NHS Sheffield CCG,30/09/2021,C&M-GMS Prem Healthcentre Rent,PRC DELEGATED CO-COMMISSIONING,BASLOW ROAD & SHOREHAM STREET SURGERIES,38245653,16754.22,S17 4DR
Department of Health,NHS Sheffield CCG,30/09/2021,C&M-GMS Prem Notional Rent,PRC DELEGATED CO-COMMISSIONING,BASLOW ROAD & SHOREHAM STREET SURGERIES,38245653,8222.71,S17 4DR
Department of Health,NHS Sheffield CCG,30/09/2021,C&M-GMS Prem Water Rates,PRC DELEGATED CO-COMMISSIONING,BASLOW ROAD & SHOREHAM STREET SURGERIES,38245653,91.41,S17 4DR
Department of Health,NHS Sheffield CCG,30/09/2021,C&M-GMS QOF Aspiration,PRC DELEGATED CO-COMMISSIONING,BASLOW ROAD & SHOREHAM STREET SURGERIES,38245653,10432.69,S17 4DR
Department of Health,NHS Sheffield CCG,30/09/2021,C&M-GMS GP Statutory Levy,PRC DELEGATED CO-COMMISSIONING,BASLOW ROAD & SHOREHAM STREET SURGERIES,38245654,-435.12,S17 4DR
Department of Health,NHS Sheffield CCG,30/09/2021,C&M-GMS Prem Notional Rent,PRC DELEGATED CO-COMMISSIONING,BASLOW ROAD & SHOREHAM STREET SURGERIES,38245654,-2507.29,S17 4DR
Department of Health,NHS Sheffield CCG,30/09/2021,C&M-GMS Global Sum,PRC DELEGATED CO-COMMISSIONING,MATHEWS PRACTICE,38245655,58494.86,S2 4UJ
Department of Health,NHS Sheffield CCG,30/09/2021,C&M-GMS PCN DES Participation,PRC DELEGATED CO-COMMISSIONING,MATHEWS PRACTICE,38245655,1147.05,S2 4UJ
Department of Health,NHS Sheffield CCG,30/09/2021,C&M-GMS Prem Rates,PRC DELEGATED CO-COMMISSIONING,MATHEWS PRACTICE,38245655,1466,S2 4UJ
Department of Health,NHS Sheffield CCG,30/09/2021,C&M-GMS QOF Aspiration,PRC DELEGATED CO-COMMISSIONING,MATHEWS PRACTICE,38245655,6845.8,S2 4UJ
Department of Health,NHS Sheffield CCG,30/09/2021,C&M-GMS DES Extended Hours Access,PRC DELEGATED CO-COMMISSIONING,ECCLESFIELD GROUP PRACTICE,38245658,5114.88,S35 9XQ
Department of Health,NHS Sheffield CCG,30/09/2021,C&M-GMS DES Learn Dsblty Hlth Chk,PRC DELEGATED CO-COMMISSIONING,ECCLESFIELD GROUP PRACTICE,38245658,3220,S35 9XQ
Department of Health,NHS Sheffield CCG,30/09/2021,C&M-GMS Global Sum,PRC DELEGATED CO-COMMISSIONING,ECCLESFIELD GROUP PRACTICE,38245658,74997.89,S35 9XQ
Department of Health,NHS Sheffield CCG,30/09/2021,C&M-GMS PCN DES Clinical Director,PRC DELEGATED CO-COMMISSIONING,ECCLESFIELD GROUP PRACTICE,38245658,5214.33,S35 9XQ
Department of Health,NHS Sheffield CCG,30/09/2021,C&M-GMS PCN DES PCN support,PRC DELEGATED CO-COMMISSIONING,ECCLESFIELD GROUP PRACTICE,38245658,5328,S35 9XQ
Department of Health,NHS Sheffield CCG,30/09/2021,C&M-GMS PCN DES Participation,PRC DELEGATED CO-COMMISSIONING,ECCLESFIELD GROUP PRACTICE,38245658,1441.13,S35 9XQ
Department of Health,NHS Sheffield CCG,30/09/2021,C&M-GMS PCN DES Physiotherapist,PRC DELEGATED CO-COMMISSIONING,ECCLESFIELD GROUP PRACTICE,38245658,4716.25,S35 9XQ
Department of Health,NHS Sheffield CCG,30/09/2021,C&M-GMS PCN DES Soc Prescribing,PRC DELEGATED CO-COMMISSIONING,ECCLESFIELD GROUP PRACTICE,38245658,13402.96,S35 9XQ
Department of Health,NHS Sheffield CCG,30/09/2021,C&M-GMS PCO Other,PRC DELEGATED CO-COMMISSIONING,ECCLESFIELD GROUP PRACTICE,38245658,542,S35 9XQ
Department of Health,NHS Sheffield CCG,30/09/2021,C&M-GMS Prem Notional Rent,PRC DELEGATED CO-COMMISSIONING,ECCLESFIELD GROUP PRACTICE,38245658,6899.17,S35 9XQ
Department of Health,NHS Sheffield CCG,30/09/2021,C&M-GMS Prem Rates,PRC DELEGATED CO-COMMISSIONING,ECCLESFIELD GROUP PRACTICE,38245658,1063,S35 9XQ
Department of Health,NHS Sheffield CCG,30/09/2021,C&M-GMS QOF Aspiration,PRC DELEGATED CO-COMMISSIONING,ECCLESFIELD GROUP PRACTICE,38245658,9899.3,S35 9XQ
Department of Health,NHS Sheffield CCG,30/09/2021,C&M-GMS Global Sum,PRC DELEGATED CO-COMMISSIONING,OUGHTIBRIDGE SURGERY,38245660,46965.38,S35 0FW
Department of Health,NHS Sheffield CCG,30/09/2021,C&M-GMS PCN DES Participation,PRC DELEGATED CO-COMMISSIONING,OUGHTIBRIDGE SURGERY,38245660,886,S35 0FW
Department of Health,NHS Sheffield CCG,30/09/2021,C&M-GMS Prem Notional Rent,PRC DELEGATED CO-COMMISSIONING,OUGHTIBRIDGE SURGERY,38245660,4064.58,S35 0FW
Department of Health,NHS Sheffield CCG,30/09/2021,C&M-GMS Prem Rates,PRC DELEGATED CO-COMMISSIONING,OUGHTIBRIDGE SURGERY,38245660,511,S35 0FW
Department of Health,NHS Sheffield CCG,30/09/2021,C&M-GMS QOF Aspiration,PRC DELEGATED CO-COMMISSIONING,OUGHTIBRIDGE SURGERY,38245660,4819.4,S35 0FW
Department of Health,NHS Sheffield CCG,30/09/2021,C&M-GMS DES Learn Dsblty Hlth Chk,PRC DELEGATED CO-COMMISSIONING,ELM LANE SURGERY,38245669,1400,S5 7TW
Department of Health,NHS Sheffield CCG,30/09/2021,C&M-GMS Global Sum,PRC DELEGATED CO-COMMISSIONING,ELM LANE SURGERY,38245669,45624.99,S5 7TW
Department of Health,NHS Sheffield CCG,30/09/2021,C&M-GMS PCN DES Participation,PRC DELEGATED CO-COMMISSIONING,ELM LANE SURGERY,38245669,865.86,S5 7TW
Department of Health,NHS Sheffield CCG,30/09/2021,C&M-GMS PCO Other,PRC DELEGATED CO-COMMISSIONING,ELM LANE SURGERY,38245669,358.8,S5 7TW
Department of Health,NHS Sheffield CCG,30/09/2021,C&M-GMS Prem Notional Rent,PRC DELEGATED CO-COMMISSIONING,ELM LANE SURGERY,38245669,5343,S5 7TW
Department of Health,NHS Sheffield CCG,30/09/2021,C&M-GMS Prem Rates,PRC DELEGATED CO-COMMISSIONING,ELM LANE SURGERY,38245669,959,S5 7TW
Department of Health,NHS Sheffield CCG,30/09/2021,C&M-GMS QOF Aspiration,PRC DELEGATED CO-COMMISSIONING,ELM LANE SURGERY,38245669,5528.96,S5 7TW
Department of Health,NHS Sheffield CCG,30/09/2021,C&M-GMS DES Learn Dsblty Hlth Chk,PRC DELEGATED CO-COMMISSIONING,HOLLIES MEDICAL CENTRE,38245674,420,S11 9AL
Department of Health,NHS Sheffield CCG,30/09/2021,C&M-GMS Global Sum,PRC DELEGATED CO-COMMISSIONING,HOLLIES MEDICAL CENTRE,38245674,68177.25,S11 9AL
Department of Health,NHS Sheffield CCG,30/09/2021,C&M-GMS PCN DES Participation,PRC DELEGATED CO-COMMISSIONING,HOLLIES MEDICAL CENTRE,38245674,1270.72,S11 9AL
Department of Health,NHS Sheffield CCG,30/09/2021,C&M-GMS PCO Other,PRC DELEGATED CO-COMMISSIONING,HOLLIES MEDICAL CENTRE,38245674,618.9,S11 9AL
Department of Health,NHS Sheffield CCG,30/09/2021,C&M-GMS Prem Notional Rent,PRC DELEGATED CO-COMMISSIONING,HOLLIES MEDICAL CENTRE,38245674,3358.33,S11 9AL
Department of Health,NHS Sheffield CCG,30/09/2021,C&M-GMS Prem Rates,PRC DELEGATED CO-COMMISSIONING,HOLLIES MEDICAL CENTRE,38245674,1272,S11 9AL
Department of Health,NHS Sheffield CCG,30/09/2021,C&M-GMS QOF Aspiration,PRC DELEGATED CO-COMMISSIONING,HOLLIES MEDICAL CENTRE,38245674,8186.06,S11 9AL
Department of Health,NHS Sheffield CCG,30/09/2021,C&M-GMS GP Statutory Levy,PRC DELEGATED CO-COMMISSIONING,HOLLIES MEDICAL CENTRE,38245675,-354.45,S11 9AL
Department of Health,NHS Sheffield CCG,30/09/2021,C&M-GMS Global Sum,PRC DELEGATED CO-COMMISSIONING,GRENOSIDE SURGERY,38245678,65822.84,S35 8NX
Department of Health,NHS Sheffield CCG,30/09/2021,C&M-GMS PCN DES Participation,PRC DELEGATED CO-COMMISSIONING,GRENOSIDE SURGERY,38245678,1250.62,S35 8NX
Department of Health,NHS Sheffield CCG,30/09/2021,C&M-GMS PCO Other,PRC DELEGATED CO-COMMISSIONING,GRENOSIDE SURGERY,38245678,492.7,S35 8NX
Department of Health,NHS Sheffield CCG,30/09/2021,C&M-GMS Prem Notional Rent,PRC DELEGATED CO-COMMISSIONING,GRENOSIDE SURGERY,38245678,8375,S35 8NX
Department of Health,NHS Sheffield CCG,30/09/2021,C&M-GMS Prem Rates,PRC DELEGATED CO-COMMISSIONING,GRENOSIDE SURGERY,38245678,1622,S35 8NX
Department of Health,NHS Sheffield CCG,30/09/2021,C&M-GMS QOF Aspiration,PRC DELEGATED CO-COMMISSIONING,GRENOSIDE SURGERY,38245678,6590.45,S35 8NX
Department of Health,NHS Sheffield CCG,30/09/2021,C&M-GMS GP Statutory Levy,PRC DELEGATED CO-COMMISSIONING,GRENOSIDE SURGERY,38245679,-274.82,S35 8NX
Department of Health,NHS Sheffield CCG,30/09/2021,C&M-GMS Global Sum,PRC DELEGATED CO-COMMISSIONING,SHARROW LANE MEDICAL CENTRE,38245683,26213.86,S11 8AN
Department of Health,NHS Sheffield CCG,30/09/2021,C&M-GMS PCN DES Participation,PRC DELEGATED CO-COMMISSIONING,SHARROW LANE MEDICAL CENTRE,38245683,500.68,S11 8AN
Department of Health,NHS Sheffield CCG,30/09/2021,C&M-GMS Prem Notional Rent,PRC DELEGATED CO-COMMISSIONING,SHARROW LANE MEDICAL CENTRE,38245683,2741.67,S11 8AN
Department of Health,NHS Sheffield CCG,30/09/2021,C&M-GMS QOF Aspiration,PRC DELEGATED CO-COMMISSIONING,SHARROW LANE MEDICAL CENTRE,38245683,2983.54,S11 8AN
Department of Health,NHS Sheffield CCG,30/09/2021,C&M-GMS DES Learn Dsblty Hlth Chk,PRC DELEGATED CO-COMMISSIONING,SHIREGREEN MEDICAL CENTRE,38245686,840,S5 0RG
Department of Health,NHS Sheffield CCG,30/09/2021,C&M-GMS Global Sum,PRC DELEGATED CO-COMMISSIONING,SHIREGREEN MEDICAL CENTRE,38245686,60366.21,S5 0RG
Department of Health,NHS Sheffield CCG,30/09/2021,C&M-GMS PCN DES Participation,PRC DELEGATED CO-COMMISSIONING,SHIREGREEN MEDICAL CENTRE,38245686,1161.13,S5 0RG
Department of Health,NHS Sheffield CCG,30/09/2021,C&M-GMS Prem Cost Rent,PRC DELEGATED CO-COMMISSIONING,SHIREGREEN MEDICAL CENTRE,38245686,1792.33,S5 0RG
Department of Health,NHS Sheffield CCG,30/09/2021,C&M-GMS Prem Notional Rent,PRC DELEGATED CO-COMMISSIONING,SHIREGREEN MEDICAL CENTRE,38245686,5375,S5 0RG
Department of Health,NHS Sheffield CCG,30/09/2021,C&M-GMS Prem Rates,PRC DELEGATED CO-COMMISSIONING,SHIREGREEN MEDICAL CENTRE,38245686,1868,S5 0RG
Department of Health,NHS Sheffield CCG,30/09/2021,C&M-GMS QOF Aspiration,PRC DELEGATED CO-COMMISSIONING,SHIREGREEN MEDICAL CENTRE,38245686,7267.46,S5 0RG
Department of Health,NHS Sheffield CCG,30/09/2021,C&M-GMS Global Sum,PRC DELEGATED CO-COMMISSIONING,HEELEY GREEN SURGERY,38245690,44337.9,S2 3AJ
Department of Health,NHS Sheffield CCG,30/09/2021,C&M-GMS PCN DES Participation,PRC DELEGATED CO-COMMISSIONING,HEELEY GREEN SURGERY,38245690,848.8,S2 3AJ
Department of Health,NHS Sheffield CCG,30/09/2021,C&M-GMS Prem Notional Rent,PRC DELEGATED CO-COMMISSIONING,HEELEY GREEN SURGERY,38245690,3254.17,S2 3AJ
Department of Health,NHS Sheffield CCG,30/09/2021,C&M-GMS QOF Aspiration,PRC DELEGATED CO-COMMISSIONING,HEELEY GREEN SURGERY,38245690,4674.69,S2 3AJ
Department of Health,NHS Sheffield CCG,30/09/2021,C&M-GMS DES Learn Dsblty Hlth Chk,PRC DELEGATED CO-COMMISSIONING,DEVONSHIRE GREEN MEDICAL CENTRE,38245695,2800,S3 7SF
Department of Health,NHS Sheffield CCG,30/09/2021,C&M-GMS Global Sum,PRC DELEGATED CO-COMMISSIONING,DEVONSHIRE GREEN MEDICAL CENTRE,38245695,50965.01,S3 7SF
Department of Health,NHS Sheffield CCG,30/09/2021,C&M-GMS PCN DES Participation,PRC DELEGATED CO-COMMISSIONING,DEVONSHIRE GREEN MEDICAL CENTRE,38245695,936.47,S3 7SF
Department of Health,NHS Sheffield CCG,30/09/2021,C&M-GMS Prem Notional Rent,PRC DELEGATED CO-COMMISSIONING,DEVONSHIRE GREEN MEDICAL CENTRE,38245695,5987.5,S3 7SF
Department of Health,NHS Sheffield CCG,30/09/2021,C&M-GMS Prem Rates,PRC DELEGATED CO-COMMISSIONING,DEVONSHIRE GREEN MEDICAL CENTRE,38245695,778,S3 7SF
Department of Health,NHS Sheffield CCG,30/09/2021,C&M-GMS Prem Water Rates,PRC DELEGATED CO-COMMISSIONING,DEVONSHIRE GREEN MEDICAL CENTRE,38245695,160.68,S3 7SF
Department of Health,NHS Sheffield CCG,30/09/2021,C&M-GMS QOF Aspiration,PRC DELEGATED CO-COMMISSIONING,DEVONSHIRE GREEN MEDICAL CENTRE,38245695,5473.95,S3 7SF
Department of Health,NHS Sheffield CCG,30/09/2021,C&M-GMS DES Learn Dsblty Hlth Chk,PRC DELEGATED CO-COMMISSIONING,CROOKES PRACTICE,38245700,980,S10 1GN
Department of Health,NHS Sheffield CCG,30/09/2021,C&M-GMS Global Sum,PRC DELEGATED CO-COMMISSIONING,CROOKES PRACTICE,38245700,57030.44,S10 1GN
Department of Health,NHS Sheffield CCG,30/09/2021,C&M-GMS PCN DES Participation,PRC DELEGATED CO-COMMISSIONING,CROOKES PRACTICE,38245700,1077.54,S10 1GN
Department of Health,NHS Sheffield CCG,30/09/2021,C&M-GMS PCO Other,PRC DELEGATED CO-COMMISSIONING,CROOKES PRACTICE,38245700,532.1,S10 1GN
Department of Health,NHS Sheffield CCG,30/09/2021,C&M-GMS Prem Notional Rent,PRC DELEGATED CO-COMMISSIONING,CROOKES PRACTICE,38245700,4006.59,S10 1GN
Department of Health,NHS Sheffield CCG,30/09/2021,C&M-GMS Prem Rates,PRC DELEGATED CO-COMMISSIONING,CROOKES PRACTICE,38245700,1534,S10 1GN
Department of Health,NHS Sheffield CCG,30/09/2021,C&M-GMS QOF Aspiration,PRC DELEGATED CO-COMMISSIONING,CROOKES PRACTICE,38245700,5404.47,S10 1GN
Department of Health,NHS Sheffield CCG,30/09/2021,C&M-GMS Global Sum,PRC DELEGATED CO-COMMISSIONING,MILL ROAD SURGERY SHEFFIELD,38245713,44654.76,S35 9XQ
Department of Health,NHS Sheffield CCG,30/09/2021,C&M-GMS PCN DES Participation,PRC DELEGATED CO-COMMISSIONING,MILL ROAD SURGERY SHEFFIELD,38245713,838.81,S35 9XQ
Department of Health,NHS Sheffield CCG,30/09/2021,C&M-GMS PCO Other,PRC DELEGATED CO-COMMISSIONING,MILL ROAD SURGERY SHEFFIELD,38245713,350.7,S35 9XQ
Department of Health,NHS Sheffield CCG,30/09/2021,C&M-GMS Prem Notional Rent,PRC DELEGATED CO-COMMISSIONING,MILL ROAD SURGERY SHEFFIELD,38245713,4593.33,S35 9XQ
Department of Health,NHS Sheffield CCG,30/09/2021,C&M-GMS Prem Rates,PRC DELEGATED CO-COMMISSIONING,MILL ROAD SURGERY SHEFFIELD,38245713,674,S35 9XQ
Department of Health,NHS Sheffield CCG,30/09/2021,C&M-GMS QOF Aspiration,PRC DELEGATED CO-COMMISSIONING,MILL ROAD SURGERY SHEFFIELD,38245713,5365.62,S35 9XQ
Department of Health,NHS Sheffield CCG,30/09/2021,C&M-GMS Global Sum,PRC DELEGATED CO-COMMISSIONING,MEDICAL CENTRE CRYSTAL PEAKS,38245720,50763.05,S20 7HZ
Department of Health,NHS Sheffield CCG,30/09/2021,C&M-GMS PCN DES Participation,PRC DELEGATED CO-COMMISSIONING,MEDICAL CENTRE CRYSTAL PEAKS,38245720,978.29,S20 7HZ
Department of Health,NHS Sheffield CCG,30/09/2021,C&M-GMS PCO Locum Adop/Pat/Mat,PRC DELEGATED CO-COMMISSIONING,MEDICAL CENTRE CRYSTAL PEAKS,38245720,14512.69,S20 7HZ
Department of Health,NHS Sheffield CCG,30/09/2021,C&M-GMS PCO Other,PRC DELEGATED CO-COMMISSIONING,MEDICAL CENTRE CRYSTAL PEAKS,38245720,430.8,S20 7HZ
Department of Health,NHS Sheffield CCG,30/09/2021,C&M-GMS Prem Notional Rent,PRC DELEGATED CO-COMMISSIONING,MEDICAL CENTRE CRYSTAL PEAKS,38245720,270,S20 7HZ
Department of Health,NHS Sheffield CCG,30/09/2021,C&M-GMS Prem Rates,PRC DELEGATED CO-COMMISSIONING,MEDICAL CENTRE CRYSTAL PEAKS,38245720,1073,S20 7HZ
Department of Health,NHS Sheffield CCG,30/09/2021,C&M-GMS QOF Aspiration,PRC DELEGATED CO-COMMISSIONING,MEDICAL CENTRE CRYSTAL PEAKS,38245720,7126.23,S20 7HZ
Department of Health,NHS Sheffield CCG,30/09/2021,C&M-GMS GP Statutory Levy,PRC DELEGATED CO-COMMISSIONING,MEDICAL CENTRE CRYSTAL PEAKS,38245721,-231.84,S20 7HZ
Department of Health,NHS Sheffield CCG,30/09/2021,C&M-GMS DES Learn Dsblty Hlth Chk,PRC DELEGATED CO-COMMISSIONING,GREYSTONES MEDICAL CENTRE,38245722,140,S11 7BJ
Department of Health,NHS Sheffield CCG,30/09/2021,C&M-GMS Global Sum,PRC DELEGATED CO-COMMISSIONING,GREYSTONES MEDICAL CENTRE,38245722,21603.95,S11 7BJ
Department of Health,NHS Sheffield CCG,30/09/2021,C&M-GMS PCN DES Participation,PRC DELEGATED CO-COMMISSIONING,GREYSTONES MEDICAL CENTRE,38245722,403.29,S11 7BJ
Department of Health,NHS Sheffield CCG,30/09/2021,C&M-GMS PCO Other,PRC DELEGATED CO-COMMISSIONING,GREYSTONES MEDICAL CENTRE,38245722,263,S11 7BJ
Department of Health,NHS Sheffield CCG,30/09/2021,C&M-GMS Prem Notional Rent,PRC DELEGATED CO-COMMISSIONING,GREYSTONES MEDICAL CENTRE,38245722,2885.42,S11 7BJ
Department of Health,NHS Sheffield CCG,30/09/2021,C&M-GMS Prem Rates,PRC DELEGATED CO-COMMISSIONING,GREYSTONES MEDICAL CENTRE,38245722,426,S11 7BJ
Department of Health,NHS Sheffield CCG,30/09/2021,C&M-GMS Prem Water Rates,PRC DELEGATED CO-COMMISSIONING,GREYSTONES MEDICAL CENTRE,38245722,84.74,S11 7BJ
Department of Health,NHS Sheffield CCG,30/09/2021,C&M-GMS QOF Aspiration,PRC DELEGATED CO-COMMISSIONING,GREYSTONES MEDICAL CENTRE,38245722,2481.16,S11 7BJ
Department of Health,NHS Sheffield CCG,30/09/2021,C&M-GMS Global Sum,PRC DELEGATED CO-COMMISSIONING,STANNINGTON MEDICAL CENTRE,38245726,27391.22,S6 6BX
Department of Health,NHS Sheffield CCG,30/09/2021,C&M-GMS PCO Other,PRC DELEGATED CO-COMMISSIONING,STANNINGTON MEDICAL CENTRE,38245726,242,S6 6BX
Department of Health,NHS Sheffield CCG,30/09/2021,C&M-GMS Prem Notional Rent,PRC DELEGATED CO-COMMISSIONING,STANNINGTON MEDICAL CENTRE,38245726,2625,S6 6BX
Department of Health,NHS Sheffield CCG,30/09/2021,C&M-GMS Prem Rates,PRC DELEGATED CO-COMMISSIONING,STANNINGTON MEDICAL CENTRE,38245726,469,S6 6BX
Department of Health,NHS Sheffield CCG,30/09/2021,C&M-GMS QOF Aspiration,PRC DELEGATED CO-COMMISSIONING,STANNINGTON MEDICAL CENTRE,38245726,3194.14,S6 6BX
Department of Health,NHS Sheffield CCG,30/09/2021,C&M-GMS GP Statutory Levy,PRC DELEGATED CO-COMMISSIONING,FAR LANE MEDICAL CENTRE,38259211,-250.08,S6 4FA
Department of Health,NHS Sheffield CCG,30/09/2021,C&M-GMS GP Statutory Levy,PRC DELEGATED CO-COMMISSIONING,BROOMHILL SURGERY,38259212,-339.64,S10 5BU
Department of Health,NHS Sheffield CCG,30/09/2021,C&M-GMS Global Sum,PRC DELEGATED CO-COMMISSIONING,BEAUCHIEF MEDICAL PRACTICE,38259214,52549.3,S8 0BJ
Department of Health,NHS Sheffield CCG,30/09/2021,C&M-GMS PCN DES Participation,PRC DELEGATED CO-COMMISSIONING,BEAUCHIEF MEDICAL PRACTICE,38259214,540.77,S8 0BJ
Department of Health,NHS Sheffield CCG,30/09/2021,C&M-GMS PCO Other,PRC DELEGATED CO-COMMISSIONING,BEAUCHIEF MEDICAL PRACTICE,38259214,2995.2,S8 0BJ
Department of Health,NHS Sheffield CCG,30/09/2021,C&M-GMS Prem Notional Rent,PRC DELEGATED CO-COMMISSIONING,BEAUCHIEF MEDICAL PRACTICE,38259214,3770.84,S8 0BJ
Department of Health,NHS Sheffield CCG,30/09/2021,C&M-GMS QOF Aspiration,PRC DELEGATED CO-COMMISSIONING,BEAUCHIEF MEDICAL PRACTICE,38259214,2679.89,S8 0BJ
Department of Health,NHS Sheffield CCG,30/09/2021,Computer Software/License,CLINICAL LEADS,SCHAPPIT LTD,38276818,44400,N1 1PW
Department of Health,NHS Sheffield CCG,30/09/2021,Clinical&Medical-Independent Sector,Mental Health Services - S117 Mental Health,MOORVILLE RESIDENTIAL,38287113,28332.76,S10 5FA
Department of Health,NHS Sheffield CCG,30/09/2021,Cont Care-Learning Disab(<65),CHC ADULT FULLY FUNDED,MOORVILLE RESIDENTIAL,38287113,9171.66,S10 5FA
Department of Health,NHS Sheffield CCG,30/09/2021,Cont Care-Learning Disab(<65),CHC ADULT JOINT FUNDED,MOORVILLE RESIDENTIAL,38287113,4333.18,S10 5FA
Department of Health,NHS Sheffield CCG,30/09/2021,Cont Care-Mental Health (<65),CHC ADULT JOINT FUNDED,MOORVILLE RESIDENTIAL,38287113,506.23,S10 5FA
Department of Health,NHS Sheffield CCG,30/09/2021,Clinical&Medical-Independent Sector,ACUTE COMMISSIONING,ONEHEALTH GROUP,38287141,41935.27,S11 8UX
Department of Health,NHS Sheffield CCG,30/09/2021,Clinical&Medical-Independent Sector,ACUTE COMMISSIONING,CLAREMONT HOSPITAL,38287202,78839,S10 5UB
Department of Health,NHS Sheffield CCG,30/09/2021,Participation Fees,BEREAVEMENT SERVICE,SHEFFIELD CHILDRENS NHS FOUNDATION TRUST,38287242,159000,S10 2TH
Department of Health,NHS Sheffield CCG,30/09/2021,Computer Software/License,BEREAVEMENT SERVICE,CIVICA UK LTD,38287458,213495.25,DY1 4TD
Department of Health,NHS Sheffield CCG,30/09/2021,C&M-GMS LES CCGLcltyExec&Clin Leads,LOCAL ENHANCED SERVICES,GREEN CROSS GROUP PRACTICE,38287473,40000,S5 8GS
Department of Health,NHS Sheffield CCG,30/09/2021,C&M- PCN DES Nursing Associate,PRC DELEGATED CO-COMMISSIONING,PRIMARY CARE SHEFFIELD LTD,38287638,1983.15,S9 4EU
Department of Health,NHS Sheffield CCG,30/09/2021,C&M-GMS C&M-APMS PCN DES Physician Assoc,PRC DELEGATED CO-COMMISSIONING,PRIMARY CARE SHEFFIELD LTD,38287638,11712.96,S9 4EU
Department of Health,NHS Sheffield CCG,30/09/2021,C&M-GMS PCN DES Clin Pharmacist,PRC DELEGATED CO-COMMISSIONING,PRIMARY CARE SHEFFIELD LTD,38287638,15748.8,S9 4EU
Department of Health,NHS Sheffield CCG,30/09/2021,C&M-GMS PCN DES Physiotherapist,PRC DELEGATED CO-COMMISSIONING,PRIMARY CARE SHEFFIELD LTD,38287638,5110.5,S9 4EU
Department of Health,NHS Sheffield CCG,30/09/2021,C&M-GMS PCN DES Soc Prescribing,PRC DELEGATED CO-COMMISSIONING,PRIMARY CARE SHEFFIELD LTD,38287638,2717.68,S9 4EU
Department of Health,NHS Sheffield CCG,30/09/2021,C&M-GMS PCN DES Clin Pharmacist,PRC DELEGATED CO-COMMISSIONING,PRIMARY CARE SHEFFIELD LTD,38287746,17904.66,S9 4EU
Department of Health,NHS Sheffield CCG,30/09/2021,C&M-GMS PCN DES Soc Prescribing,PRC DELEGATED CO-COMMISSIONING,PRIMARY CARE SHEFFIELD LTD,38287746,8162.63,S9 4EU
Department of Health,NHS Sheffield CCG,30/09/2021,C&M-PCN DES PHARMACY TECHNICIANS,PRC DELEGATED CO-COMMISSIONING,PRIMARY CARE SHEFFIELD LTD,38287746,7924.38,S9 4EU
Department of Health,NHS Sheffield CCG,30/09/2021,Clinical&Medical-Independent Sector,ACUTE COMMISSIONING,CLAREMONT HOSPITAL,38292658,-35307.78,S10 5UB
